Workbook

Sheet A
AE5: 3 | AF5: 1 | AG5: 1 | AH5: 0 | AK5: 3 | AL5: 1 | AM5: 1 | AN5: 0
B6: 1ª RODADA | M6: MESA | AE6: Vitórias | AF6: Empates | AG6: Empates | AH6: Derrotas | AK6: Vitórias | AL6: Empates | AM6: Empates | AN6: Derrotas
B7: 2 | C7: =VLOOKUP(B7,$B$46:$C$53,2,0) -> WELLINGTON-ADDP | F7: 4 | G7: X | H7: 2 | I7: =VLOOKUP(L7,$B$46:$C$53,2,0) -> B.MACHADO-BQ | L7: 7 | M7: 4 | AE7: =IF(F7>H7,C7,IF(F7=H7,0,I7)) -> WELLINGTON-ADDP | AF7: =(IF(F7<>"-",(IF(F7=H7,C7,0)),0)) -> 0 | AG7: =(IF(F7<>"-",(IF(F7=H7,I7,0)),0)) -> 0 | AH7: =IF(F7<H7,C7,IF(F7=H7,0,I7)) -> B.MACHADO-BQ | AK7: =IF(R7>T7,O7,IF(R7=T7,0,U7)) -> 0 | AL7: =(IF(R7<>"-",(IF(R7=T7,O7,0)),0)) -> 0 | AM7: =(IF(R7<>"-",(IF(R7=T7,U7,0)),0)) -> 0 | AN7: =IF(R7<T7,O7,IF(R7=T7,0,U7)) -> 0
B8: 3 | C8: =VLOOKUP(B8,$B$46:$C$53,2,0) -> B. RAFAEL-SANTOS | F8: 5 | G8: X | H8: 3 | I8: =VLOOKUP(L8,$B$46:$C$53,2,0) -> PAULINHO-BOT-DF | L8: 6 | M8: 5 | AE8: B. RAFAEL-SANTOS | AF8: 0 | AG8: 0 | AH8: PAULINHO-BOT-DF | AK8: 0 | AL8: 0 | AM8: 0 | AN8: 0
B9: 4 | C9: =VLOOKUP(B9,$B$46:$C$53,2,0) -> LIBÓRIO-FFC | F9: 1 | G9: X | H9: 0 | I9: =VLOOKUP(L9,$B$46:$C$53,2,0) -> HAMILTON-BQ | L9: 5 | M9: 6 | AE9: LIBÓRIO-FFC | AF9: 0 | AG9: 0 | AH9: HAMILTON-BQ | AK9: 0 | AL9: 0 | AM9: 0 | AN9: 0
B10: 1 | C10: =VLOOKUP(B10,$B$46:$C$53,2,0) -> AUGUSTO-CRF | F10: 1 | G10: X | H10: 0 | I10: =VLOOKUP(L10,$B$46:$C$53,2,0) -> VAGO-W.O | L10: 8 | AE10: =IF(F10>H10,C10,IF(F10=H10,0,I10)) -> AUGUSTO-CRF | AF10: =(IF(F10<>"-",(IF(F10=H10,C10,0)),0)) -> 0 | AG10: =(IF(F10<>"-",(IF(F10=H10,I10,0)),0)) -> 0 | AH10: =IF(F10<H10,C10,IF(F10=H10,0,I10)) -> VAGO-W.O | AK10: =IF(R10>T10,O10,IF(R10=T10,0,U10)) -> 0 | AL10: =(IF(R10<>"-",(IF(R10=T10,O10,0)),0)) -> 0 | AM10: =(IF(R10<>"-",(IF(R10=T10,U10,0)),0)) -> 0 | AN10: =IF(R10<T10,O10,IF(R10=T10,0,U10)) -> 0
B11: 2ª RODADA | M11: MESA | AE11: 0 | AF11: 0 | AG11: 0 | AH11: 0 | AK11: 0 | AL11: 0 | AM11: 0 | AN11: 0
B12: 5 | C12: =VLOOKUP(B12,$B$46:$C$53,2,0) -> HAMILTON-BQ | F12: 0 | G12: X | H12: 1 | I12: =VLOOKUP(L12,$B$46:$C$53,2,0) -> B. RAFAEL-SANTOS | L12: 3 | M12: 4 | AE12: B. RAFAEL-SANTOS | AF12: 0 | AG12: 0 | AH12: HAMILTON-BQ | AK12: 0 | AL12: 0 | AM12: 0 | AN12: 0
B13: 6 | C13: =VLOOKUP(B13,$B$46:$C$53,2,0) -> PAULINHO-BOT-DF | F13: 0 | G13: X | H13: 1 | I13: =VLOOKUP(L13,$B$46:$C$53,2,0) -> WELLINGTON-ADDP | L13: 2 | M13: 5 | AE13: WELLINGTON-ADDP | AF13: 0 | AG13: 0 | AH13: PAULINHO-BOT-DF | AK13: 0 | AL13: 0 | AM13: 0 | AN13: 0
B14: 7 | C14: =VLOOKUP(B14,$B$46:$C$53,2,0) -> B.MACHADO-BQ | F14: 2 | G14: X | H14: 2 | I14: =VLOOKUP(L14,$B$46:$C$53,2,0) -> AUGUSTO-CRF | L14: 1 | M14: 6 | AE14: 0 | AF14: B.MACHADO-BQ | AG14: AUGUSTO-CRF | AH14: 0 | AK14: 0 | AL14: 0 | AM14: 0 | AN14: 0
B15: 8 | C15: =VLOOKUP(B15,$B$46:$C$53,2,0) -> VAGO-W.O | F15: 0 | G15: X | H15: 1 | I15: =VLOOKUP(L15,$B$46:$C$53,2,0) -> LIBÓRIO-FFC | L15: 4 | AE15: LIBÓRIO-FFC | AF15: 0 | AG15: 0 | AH15: VAGO-W.O | AK15: 0 | AL15: 0 | AM15: 0 | AN15: 0
B16: 3ª RODADA | M16: MESA | AE16: 0 | AF16: 0 | AG16: 0 | AH16: 0 | AK16: 0 | AL16: 0 | AM16: 0 | AN16: 0
B17: 1 | C17: =VLOOKUP(B17,$B$46:$C$53,2,0) -> AUGUSTO-CRF | F17: 1 | G17: X | H17: 1 | I17: =VLOOKUP(L17,$B$46:$C$53,2,0) -> PAULINHO-BOT-DF | L17: 6 | M17: 4 | AE17: 0 | AF17: AUGUSTO-CRF | AG17: PAULINHO-BOT-DF | AH17: 0 | AK17: 0 | AL17: 0 | AM17: 0 | AN17: 0
B18: 2 | C18: =VLOOKUP(B18,$B$46:$C$53,2,0) -> WELLINGTON-ADDP | F18: 1 | G18: X | H18: 0 | I18: =VLOOKUP(L18,$B$46:$C$53,2,0) -> HAMILTON-BQ | L18: 5 | M18: 5 | AE18: WELLINGTON-ADDP | AF18: 0 | AG18: 0 | AH18: HAMILTON-BQ | AK18: 0 | AL18: 0 | AM18: 0 | AN18: 0
B19: 3 | C19: =VLOOKUP(B19,$B$46:$C$53,2,0) -> B. RAFAEL-SANTOS | F19: 2 | G19: X | H19: 1 | I19: =VLOOKUP(L19,$B$46:$C$53,2,0) -> LIBÓRIO-FFC | L19: 4 | M19: 6 | AE19: B. RAFAEL-SANTOS | AF19: 0 | AG19: 0 | AH19: LIBÓRIO-FFC | AK19: 0 | AL19: 0 | AM19: 0 | AN19: 0
B20: 7 | C20: =VLOOKUP(B20,$B$46:$C$53,2,0) -> B.MACHADO-BQ | F20: 1 | G20: X | H20: 0 | I20: =VLOOKUP(L20,$B$46:$C$53,2,0) -> VAGO-W.O | L20: 8 | AE20: B.MACHADO-BQ | AF20: 0 | AG20: 0 | AH20: VAGO-W.O | AK20: 0 | AL20: 0 | AM20: 0 | AN20: 0
B21: 4ª RODADA | M21: MESA | AE21: 0 | AF21: 0 | AG21: 0 | AH21: 0 | AK21: 0 | AL21: 0 | AM21: 0 | AN21: 0
B22: 4 | C22: =VLOOKUP(B22,$B$46:$C$53,2,0) -> LIBÓRIO-FFC | F22: 2 | G22: X | H22: 2 | I22: =VLOOKUP(L22,$B$46:$C$53,2,0) -> WELLINGTON-ADDP | L22: 2 | M22: 4 | AE22: 0 | AF22: LIBÓRIO-FFC | AG22: WELLINGTON-ADDP | AH22: 0 | AK22: 0 | AL22: 0 | AM22: 0 | AN22: 0
B23: 5 | C23: =VLOOKUP(B23,$B$46:$C$53,2,0) -> HAMILTON-BQ | F23: 0 | G23: X | H23: 1 | I23: =VLOOKUP(L23,$B$46:$C$53,2,0) -> AUGUSTO-CRF | L23: 1 | M23: 5 | AE23: AUGUSTO-CRF | AF23: 0 | AG23: 0 | AH23: HAMILTON-BQ | AK23: 0 | AL23: 0 | AM23: 0 | AN23: 0
B24: 6 | C24: =VLOOKUP(B24,$B$46:$C$53,2,0) -> PAULINHO-BOT-DF | F24: 3 | G24: X | H24: 1 | I24: =VLOOKUP(L24,$B$46:$C$53,2,0) -> B.MACHADO-BQ | L24: 7 | M24: 6 | AE24: PAULINHO-BOT-DF | AF24: 0 | AG24: 0 | AH24: B.MACHADO-BQ | AK24: 0 | AL24: 0 | AM24: 0 | AN24: 0
B25: 3 | C25: =VLOOKUP(B25,$B$46:$C$53,2,0) -> B. RAFAEL-SANTOS | F25: 1 | G25: X | H25: 0 | I25: =VLOOKUP(L25,$B$46:$C$53,2,0) -> VAGO-W.O | L25: 8 | AE25: =IF(F25>H25,C25,IF(F25=H25,0,I25)) -> B. RAFAEL-SANTOS | AF25: =(IF(F25<>"-",(IF(F25=H25,C25,0)),0)) -> 0 | AG25: =(IF(F25<>"-",(IF(F25=H25,I25,0)),0)) -> 0 | AH25: =IF(F25<H25,C25,IF(F25=H25,0,I25)) -> VAGO-W.O | AK25: =IF(R25>T25,O25,IF(R25=T25,0,U25)) -> 0 | AL25: =(IF(R25<>"-",(IF(R25=T25,O25,0)),0)) -> 0 | AM25: =(IF(R25<>"-",(IF(R25=T25,U25,0)),0)) -> 0 | AN25: =IF(R25<T25,O25,IF(R25=T25,0,U25)) -> 0
B26: 5ª RODADA | M26: MESA | AE26: 0 | AF26: 0 | AG26: 0 | AH26: 0 | AK26: 0 | AL26: 0 | AM26: 0 | AN26: 0
B27: 1 | C27: =VLOOKUP(B27,$B$46:$C$53,2,0) -> AUGUSTO-CRF | F27: 6 | G27: X | H27: 4 | I27: =VLOOKUP(L27,$B$46:$C$53,2,0) -> LIBÓRIO-FFC | L27: 4 | M27: 4 | AE27: AUGUSTO-CRF | AF27: 0 | AG27: 0 | AH27: LIBÓRIO-FFC | AK27: 0 | AL27: 0 | AM27: 0 | AN27: 0
B28: 2 | C28: =VLOOKUP(B28,$B$46:$C$53,2,0) -> WELLINGTON-ADDP | F28: 4 | G28: X | H28: 2 | I28: =VLOOKUP(L28,$B$46:$C$53,2,0) -> B. RAFAEL-SANTOS | L28: 3 | M28: 5 | AE28: WELLINGTON-ADDP | AF28: 0 | AG28: 0 | AH28: B. RAFAEL-SANTOS | AK28: 0 | AL28: 0 | AM28: 0 | AN28: 0
B29: 7 | C29: =VLOOKUP(B29,$B$46:$C$53,2,0) -> B.MACHADO-BQ | F29: 1 | G29: X | H29: 0 | I29: =VLOOKUP(L29,$B$46:$C$53,2,0) -> HAMILTON-BQ | L29: 5 | M29: 6 | AE29: B.MACHADO-BQ | AF29: 0 | AG29: 0 | AH29: HAMILTON-BQ | AK29: 0 | AL29: 0 | AM29: 0 | AN29: 0
B30: 8 | C30: =VLOOKUP(B30,$B$46:$C$53,2,0) -> VAGO-W.O | F30: 0 | G30: X | H30: 1 | I30: =VLOOKUP(L30,$B$46:$C$53,2,0) -> PAULINHO-BOT-DF | L30: 6 | AE30: PAULINHO-BOT-DF | AF30: 0 | AG30: 0 | AH30: VAGO-W.O | AK30: 0 | AL30: 0 | AM30: 0 | AN30: 0
B31: 6ª RODADA | M31: MESA | AE31: 0 | AF31: 0 | AG31: 0 | AH31: 0 | AK31: 0 | AL31: 0 | AM31: 0 | AN31: 0
B32: 3 | C32: =VLOOKUP(B32,$B$46:$C$53,2,0) -> B. RAFAEL-SANTOS | F32: 2 | G32: X | H32: 3 | I32: =VLOOKUP(L32,$B$46:$C$53,2,0) -> AUGUSTO-CRF | L32: 1 | M32: 4 | AE32: AUGUSTO-CRF | AF32: 0 | AG32: 0 | AH32: B. RAFAEL-SANTOS | AK32: 0 | AL32: 0 | AM32: 0 | AN32: 0
B33: 4 | C33: =VLOOKUP(B33,$B$46:$C$53,2,0) -> LIBÓRIO-FFC | F33: 0 | G33: X | H33: 5 | I33: =VLOOKUP(L33,$B$46:$C$53,2,0) -> B.MACHADO-BQ | L33: 7 | M33: 5 | AE33: B.MACHADO-BQ | AF33: 0 | AG33: 0 | AH33: LIBÓRIO-FFC | AK33: 0 | AL33: 0 | AM33: 0 | AN33: 0
B34: 5 | C34: =VLOOKUP(B34,$B$46:$C$53,2,0) -> HAMILTON-BQ | F34: 0 | G34: X | H34: 1 | I34: =VLOOKUP(L34,$B$46:$C$53,2,0) -> PAULINHO-BOT-DF | L34: 6 | M34: 6 | AE34: PAULINHO-BOT-DF | AF34: 0 | AG34: 0 | AH34: HAMILTON-BQ | AK34: 0 | AL34: 0 | AM34: 0 | AN34: 0
B35: 8 | C35: =VLOOKUP(B35,$B$46:$C$53,2,0) -> VAGO-W.O | F35: 0 | G35: X | H35: 1 | I35: =VLOOKUP(L35,$B$46:$C$53,2,0) -> WELLINGTON-ADDP | L35: 2 | AE35: WELLINGTON-ADDP | AF35: 0 | AG35: 0 | AH35: VAGO-W.O | AK35: 0 | AL35: 0 | AM35: 0 | AN35: 0
B36: 7ª RODADA | M36: MESA | AE36: 0 | AF36: 0 | AG36: 0 | AH36: 0 | AK36: 0 | AL36: 0 | AM36: 0 | AN36: 0
B37: 1 | C37: =VLOOKUP(B37,$B$46:$C$53,2,0) -> AUGUSTO-CRF | F37: 4 | G37: X | H37: 2 | I37: =VLOOKUP(L37,$B$46:$C$53,2,0) -> WELLINGTON-ADDP | L37: 2 | M37: 4 | AE37: AUGUSTO-CRF | AF37: 0 | AG37: 0 | AH37: WELLINGTON-ADDP | AK37: 0 | AL37: 0 | AM37: 0 | AN37: 0
B38: 6 | C38: =VLOOKUP(B38,$B$46:$C$53,2,0) -> PAULINHO-BOT-DF | F38: 3 | G38: X | H38: 2 | I38: =VLOOKUP(L38,$B$46:$C$53,2,0) -> LIBÓRIO-FFC | L38: 4 | M38: 5 | AE38: PAULINHO-BOT-DF | AF38: 0 | AG38: 0 | AH38: LIBÓRIO-FFC | AK38: 0 | AL38: 0 | AM38: 0 | AN38: 0
B39: 7 | C39: =VLOOKUP(B39,$B$46:$C$53,2,0) -> B.MACHADO-BQ | F39: 1 | G39: X | H39: 2 | I39: =VLOOKUP(L39,$B$46:$C$53,2,0) -> B. RAFAEL-SANTOS | L39: 3 | M39: 6 | AE39: B. RAFAEL-SANTOS | AF39: 0 | AG39: 0 | AH39: B.MACHADO-BQ | AK39: 0 | AL39: 0 | AM39: 0 | AN39: 0
B40: 5 | C40: =VLOOKUP(B40,$B$46:$C$53,2,0) -> HAMILTON-BQ | F40: 1 | G40: X | H40: 0 | I40: =VLOOKUP(L40,$B$46:$C$53,2,0) -> VAGO-W.O | L40: 8 | AE40: =IF(F40>H40,C40,IF(F40=H40,0,I40)) -> HAMILTON-BQ | AF40: =(IF(F40<>"-",(IF(F40=H40,C40,0)),0)) -> 0 | AG40: =(IF(F40<>"-",(IF(F40=H40,I40,0)),0)) -> 0 | AH40: =IF(F40<H40,C40,IF(F40=H40,0,I40)) -> VAGO-W.O | AK40: =IF(R40>T40,O40,IF(R40=T40,0,U40)) -> 0 | AL40: =(IF(R40<>"-",(IF(R40=T40,O40,0)),0)) -> 0 | AM40: =(IF(R40<>"-",(IF(R40=T40,U40,0)),0)) -> 0 | AN40: =IF(R40<T40,O40,IF(R40=T40,0,U40)) -> 0
AE41: 0 | AF41: 0 | AG41: 0 | AH41: 0 | AK41: 0 | AL41: 0 | AM41: 0 | AN41: 0
AE42: 0 | AF42: 0 | AG42: 0 | AH42: 0 | AK42: 0 | AL42: 0 | AM42: 0 | AN42: 0
AK43: 0 | AL43: 0 | AM43: 0 | AN43: 0
B44: PONTOS
B45: Equipes | F45: PG | G45: J | H45: V | I45: E | J45: D | K45: GP | L45: GC | M45: SG | N45: APROV
A46: 1º | B46: 1 | C46: AUGUSTO-CRF | F46: =H46*3+I46*1 -> 17 | G46: =SUM(H46:J46) -> 7 | H46: =COUNTIF($AE$7:$AE$39,C46)+COUNTIF($AK$7:$AK$39,C46) -> 5 | I46: =COUNTIF($AF$7:$AG$39,C46)+COUNTIF($AL$7:$AM$37,C46) -> 2 | J46: =COUNTIF($AH$7:$AH$39,C46)+COUNTIF($AN$7:$AN$37,C46) -> 0 | K46: =SUMIF($C$7:$C$39,$C46,$F$7:$F$39)+SUMIF($I$7:$I$39,$C46,$H$7:$H$39)+SUMIF($O$7:$O$39,$C46,$R$7:$R$39)+SUMIF($U$7:$U$39,$C46,$T$7:$T$39) -> 18 | L46: =SUMIF($C$7:$C$39,$C46,$H$7:$H$39)+SUMIF($I$7:$I$39,$C46,$F$7:$F$39)+SUMIF($O$7:$O$39,$C46,$T$7:$T$39)+SUMIF($U$7:$U$39,$C46,$R$7:$R$39) -> 11 | M46: =K46-L46 -> 7 | N46: =F46/(G46*3) -> 81%
A47: 2º | B47: 2 | C47: WELLINGTON-ADDP | F47: 16 | G47: 7 | H47: 5 | I47: 1 | J47: 1 | K47: 15 | L47: 10 | M47: 5 | N47: 76%
A48: 3º | B48: 3 | C48: B. RAFAEL-SANTOS | F48: 15 | G48: 7 | H48: 5 | I48: 0 | J48: 2 | K48: 15 | L48: 12 | M48: 3 | N48: 71%
A49: 4º | B49: 6 | C49: PAULINHO-BOT-DF | F49: 13 | G49: 7 | H49: 4 | I49: 1 | J49: 2 | K49: 12 | L49: 10 | M49: 2 | N49: 62%
A50: 5º | B50: 7 | C50: B.MACHADO-BQ | F50: 10 | G50: 7 | H50: 3 | I50: 1 | J50: 3 | K50: 13 | L50: 11 | M50: 2 | N50: 48%
A51: 6º | B51: 4 | C51: LIBÓRIO-FFC | F51: 7 | G51: 7 | H51: 2 | I51: 1 | J51: 4 | K51: 11 | L51: 18 | M51: -7 | N51: 33%
A52: 7º | B52: 5 | C52: HAMILTON-BQ | F52: 0 | G52: 6 | H52: 0 | I52: 0 | J52: 6 | K52: 0 | L52: 6 | M52: -6 | N52: 0%
A53: 8º | B53: 8 | C53: VAGO-W.O | F53: 0 | G53: 6 | H53: 0 | I53: 0 | J53: 6 | K53: 0 | L53: 6 | M53: -6 | N53: 0%

Sheet B
AE5: 3 | AF5: 1 | AG5: 1 | AH5: 0 | AK5: 3 | AL5: 1 | AM5: 1 | AN5: 0
B6: 1ª RODADA | M6: MESA | AE6: Vitórias | AF6: Empates | AG6: Empates | AH6: Derrotas | AK6: Vitórias | AL6: Empates | AM6: Empates | AN6: Derrotas
B7: 1 | C7: =VLOOKUP(B7,$B$46:$C$53,2,0) -> ROMAR-CRVG | F7: 1 | G7: X | H7: 0 | I7: =VLOOKUP(L7,$B$46:$C$53,2,0) -> VAGO-W.O | L7: 8 | M7: 4 | AE7: =IF(F7>H7,C7,IF(F7=H7,0,I7)) -> ROMAR-CRVG | AF7: =(IF(F7<>"-",(IF(F7=H7,C7,0)),0)) -> 0 | AG7: =(IF(F7<>"-",(IF(F7=H7,I7,0)),0)) -> 0 | AH7: =IF(F7<H7,C7,IF(F7=H7,0,I7)) -> VAGO-W.O | AK7: =IF(R7>T7,O7,IF(R7=T7,0,U7)) -> 0 | AL7: =(IF(R7<>"-",(IF(R7=T7,O7,0)),0)) -> 0 | AM7: =(IF(R7<>"-",(IF(R7=T7,U7,0)),0)) -> 0 | AN7: =IF(R7<T7,O7,IF(R7=T7,0,U7)) -> 0
B8: 2 | C8: =VLOOKUP(B8,$B$46:$C$53,2,0) -> LYAN-FFC | F8: 2 | G8: X | H8: 1 | I8: =VLOOKUP(L8,$B$46:$C$53,2,0) -> P.CARUSO-AABB-DF | L8: 7 | M8: 5 | AE8: =IF(F8>H8,C8,IF(F8=H8,0,I8)) -> LYAN-FFC | AF8: =(IF(F8<>"-",(IF(F8=H8,C8,0)),0)) -> 0 | AG8: =(IF(F8<>"-",(IF(F8=H8,I8,0)),0)) -> 0 | AH8: =IF(F8<H8,C8,IF(F8=H8,0,I8)) -> P.CARUSO-AABB-DF | AK8: =IF(R8>T8,O8,IF(R8=T8,0,U8)) -> 0 | AL8: =(IF(R8<>"-",(IF(R8=T8,O8,0)),0)) -> 0 | AM8: =(IF(R8<>"-",(IF(R8=T8,U8,0)),0)) -> 0 | AN8: =IF(R8<T8,O8,IF(R8=T8,0,U8)) -> 0
B9: 3 | C9: =VLOOKUP(B9,$B$46:$C$53,2,0) -> FELIPE-CRF | F9: 2 | G9: X | H9: 0 | I9: =VLOOKUP(L9,$B$46:$C$53,2,0) -> MARCELO-BQ | L9: 6 | M9: 6 | AE9: FELIPE-CRF | AF9: 0 | AG9: 0 | AH9: MARCELO-BQ | AK9: 0 | AL9: 0 | AM9: 0 | AN9: 0
B10: 4 | C10: =VLOOKUP(B10,$B$46:$C$53,2,0) -> TAVARES-CRVG | F10: 3 | G10: X | H10: 1 | I10: =VLOOKUP(L10,$B$46:$C$53,2,0) -> B. ASSUMPÇÃO-BQ | L10: 5 | AE10: TAVARES-CRVG | AF10: 0 | AG10: 0 | AH10: B. ASSUMPÇÃO-BQ | AK10: 0 | AL10: 0 | AM10: 0 | AN10: 0
B11: 2ª RODADA | M11: MESA | AE11: 0 | AF11: 0 | AG11: 0 | AH11: 0 | AK11: 0 | AL11: 0 | AM11: 0 | AN11: 0
B12: 5 | C12: =VLOOKUP(B12,$B$46:$C$53,2,0) -> B. ASSUMPÇÃO-BQ | F12: 2 | G12: X | H12: 4 | I12: =VLOOKUP(L12,$B$46:$C$53,2,0) -> FELIPE-CRF | L12: 3 | M12: 4 | AE12: FELIPE-CRF | AF12: 0 | AG12: 0 | AH12: B. ASSUMPÇÃO-BQ | AK12: 0 | AL12: 0 | AM12: 0 | AN12: 0
B13: 6 | C13: =VLOOKUP(B13,$B$46:$C$53,2,0) -> MARCELO-BQ | F13: 3 | G13: X | H13: 7 | I13: =VLOOKUP(L13,$B$46:$C$53,2,0) -> LYAN-FFC | L13: 2 | M13: 5 | AE13: LYAN-FFC | AF13: 0 | AG13: 0 | AH13: MARCELO-BQ | AK13: 0 | AL13: 0 | AM13: 0 | AN13: 0
B14: 7 | C14: =VLOOKUP(B14,$B$46:$C$53,2,0) -> P.CARUSO-AABB-DF | F14: 2 | G14: X | H14: 4 | I14: =VLOOKUP(L14,$B$46:$C$53,2,0) -> ROMAR-CRVG | L14: 1 | M14: 6 | AE14: ROMAR-CRVG | AF14: 0 | AG14: 0 | AH14: P.CARUSO-AABB-DF | AK14: 0 | AL14: 0 | AM14: 0 | AN14: 0
B15: 8 | C15: =VLOOKUP(B15,$B$46:$C$53,2,0) -> VAGO-W.O | F15: 0 | G15: X | H15: 1 | I15: =VLOOKUP(L15,$B$46:$C$53,2,0) -> TAVARES-CRVG | L15: 4 | AE15: TAVARES-CRVG | AF15: 0 | AG15: 0 | AH15: VAGO-W.O | AK15: 0 | AL15: 0 | AM15: 0 | AN15: 0
B16: 3ª RODADA | M16: MESA | AE16: 0 | AF16: 0 | AG16: 0 | AH16: 0 | AK16: 0 | AL16: 0 | AM16: 0 | AN16: 0
B17: 1 | C17: =VLOOKUP(B17,$B$46:$C$53,2,0) -> ROMAR-CRVG | F17: 3 | G17: X | H17: 0 | I17: =VLOOKUP(L17,$B$46:$C$53,2,0) -> MARCELO-BQ | L17: 6 | M17: 4 | AE17: ROMAR-CRVG | AF17: 0 | AG17: 0 | AH17: MARCELO-BQ | AK17: 0 | AL17: 0 | AM17: 0 | AN17: 0
B18: 2 | C18: =VLOOKUP(B18,$B$46:$C$53,2,0) -> LYAN-FFC | F18: 1 | G18: X | H18: 2 | I18: =VLOOKUP(L18,$B$46:$C$53,2,0) -> B. ASSUMPÇÃO-BQ | L18: 5 | M18: 5 | AE18: B. ASSUMPÇÃO-BQ | AF18: 0 | AG18: 0 | AH18: LYAN-FFC | AK18: 0 | AL18: 0 | AM18: 0 | AN18: 0
B19: 3 | C19: =VLOOKUP(B19,$B$46:$C$53,2,0) -> FELIPE-CRF | F19: 4 | G19: X | H19: 3 | I19: =VLOOKUP(L19,$B$46:$C$53,2,0) -> TAVARES-CRVG | L19: 4 | M19: 6 | AE19: FELIPE-CRF | AF19: 0 | AG19: 0 | AH19: TAVARES-CRVG | AK19: 0 | AL19: 0 | AM19: 0 | AN19: 0
B20: 7 | C20: =VLOOKUP(B20,$B$46:$C$53,2,0) -> P.CARUSO-AABB-DF | F20: 1 | G20: X | H20: 0 | I20: =VLOOKUP(L20,$B$46:$C$53,2,0) -> VAGO-W.O | L20: 8 | AE20: P.CARUSO-AABB-DF | AF20: 0 | AG20: 0 | AH20: VAGO-W.O | AK20: 0 | AL20: 0 | AM20: 0 | AN20: 0
B21: 4ª RODADA | M21: MESA | AE21: 0 | AF21: 0 | AG21: 0 | AH21: 0 | AK21: 0 | AL21: 0 | AM21: 0 | AN21: 0
B22: 3 | C22: =VLOOKUP(B22,$B$46:$C$53,2,0) -> FELIPE-CRF | F22: 1 | G22: X | H22: 0 | I22: =VLOOKUP(L22,$B$46:$C$53,2,0) -> VAGO-W.O | L22: 8 | M22: 4 | AE22: FELIPE-CRF | AF22: 0 | AG22: 0 | AH22: VAGO-W.O | AK22: 0 | AL22: 0 | AM22: 0 | AN22: 0
B23: 4 | C23: =VLOOKUP(B23,$B$46:$C$53,2,0) -> TAVARES-CRVG | F23: 5 | G23: X | H23: 4 | I23: =VLOOKUP(L23,$B$46:$C$53,2,0) -> LYAN-FFC | L23: 2 | M23: 5 | AE23: TAVARES-CRVG | AF23: 0 | AG23: 0 | AH23: LYAN-FFC | AK23: 0 | AL23: 0 | AM23: 0 | AN23: 0
B24: 5 | C24: =VLOOKUP(B24,$B$46:$C$53,2,0) -> B. ASSUMPÇÃO-BQ | F24: 0 | G24: X | H24: 3 | I24: =VLOOKUP(L24,$B$46:$C$53,2,0) -> ROMAR-CRVG | L24: 1 | M24: 6 | AE24: ROMAR-CRVG | AF24: 0 | AG24: 0 | AH24: B. ASSUMPÇÃO-BQ | AK24: 0 | AL24: 0 | AM24: 0 | AN24: 0
B25: 6 | C25: =VLOOKUP(B25,$B$46:$C$53,2,0) -> MARCELO-BQ | F25: 2 | G25: X | H25: 2 | I25: =VLOOKUP(L25,$B$46:$C$53,2,0) -> P.CARUSO-AABB-DF | L25: 7 | AE25: 0 | AF25: MARCELO-BQ | AG25: P.CARUSO-AABB-DF | AH25: 0 | AK25: 0 | AL25: 0 | AM25: 0 | AN25: 0
B26: 5ª RODADA | M26: MESA | AE26: 0 | AF26: 0 | AG26: 0 | AH26: 0 | AK26: 0 | AL26: 0 | AM26: 0 | AN26: 0
B27: 1 | C27: =VLOOKUP(B27,$B$46:$C$53,2,0) -> ROMAR-CRVG | F27: 4 | G27: X | H27: 3 | I27: =VLOOKUP(L27,$B$46:$C$53,2,0) -> TAVARES-CRVG | L27: 4 | M27: 4 | AE27: ROMAR-CRVG | AF27: 0 | AG27: 0 | AH27: TAVARES-CRVG | AK27: 0 | AL27: 0 | AM27: 0 | AN27: 0
B28: 2 | C28: =VLOOKUP(B28,$B$46:$C$53,2,0) -> LYAN-FFC | F28: 5 | G28: X | H28: 1 | I28: =VLOOKUP(L28,$B$46:$C$53,2,0) -> FELIPE-CRF | L28: 3 | M28: 5 | AE28: LYAN-FFC | AF28: 0 | AG28: 0 | AH28: FELIPE-CRF | AK28: 0 | AL28: 0 | AM28: 0 | AN28: 0
B29: 7 | C29: =VLOOKUP(B29,$B$46:$C$53,2,0) -> P.CARUSO-AABB-DF | F29: 2 | G29: X | H29: 1 | I29: =VLOOKUP(L29,$B$46:$C$53,2,0) -> B. ASSUMPÇÃO-BQ | L29: 5 | M29: 6 | AE29: P.CARUSO-AABB-DF | AF29: 0 | AG29: 0 | AH29: B. ASSUMPÇÃO-BQ | AK29: 0 | AL29: 0 | AM29: 0 | AN29: 0
B30: 8 | C30: =VLOOKUP(B30,$B$46:$C$53,2,0) -> VAGO-W.O | F30: 0 | G30: X | H30: 1 | I30: =VLOOKUP(L30,$B$46:$C$53,2,0) -> MARCELO-BQ | L30: 6 | AE30: MARCELO-BQ | AF30: 0 | AG30: 0 | AH30: VAGO-W.O | AK30: 0 | AL30: 0 | AM30: 0 | AN30: 0
B31: 6ª RODADA | M31: MESA | AE31: 0 | AF31: 0 | AG31: 0 | AH31: 0 | AK31: 0 | AL31: 0 | AM31: 0 | AN31: 0
B32: 3 | C32: =VLOOKUP(B32,$B$46:$C$53,2,0) -> FELIPE-CRF | F32: 3 | G32: X | H32: 1 | I32: =VLOOKUP(L32,$B$46:$C$53,2,0) -> ROMAR-CRVG | L32: 1 | M32: 4 | AE32: FELIPE-CRF | AF32: 0 | AG32: 0 | AH32: ROMAR-CRVG | AK32: 0 | AL32: 0 | AM32: 0 | AN32: 0
B33: 4 | C33: =VLOOKUP(B33,$B$46:$C$53,2,0) -> TAVARES-CRVG | F33: 3 | G33: X | H33: 6 | I33: =VLOOKUP(L33,$B$46:$C$53,2,0) -> P.CARUSO-AABB-DF | L33: 7 | M33: 5 | AE33: P.CARUSO-AABB-DF | AF33: 0 | AG33: 0 | AH33: TAVARES-CRVG | AK33: 0 | AL33: 0 | AM33: 0 | AN33: 0
B34: 5 | C34: =VLOOKUP(B34,$B$46:$C$53,2,0) -> B. ASSUMPÇÃO-BQ | F34: 0 | G34: X | H34: 1 | I34: =VLOOKUP(L34,$B$46:$C$53,2,0) -> MARCELO-BQ | L34: 6 | M34: 6 | AE34: MARCELO-BQ | AF34: 0 | AG34: 0 | AH34: B. ASSUMPÇÃO-BQ | AK34: 0 | AL34: 0 | AM34: 0 | AN34: 0
B35: 8 | C35: =VLOOKUP(B35,$B$46:$C$53,2,0) -> VAGO-W.O | F35: 0 | G35: X | H35: 1 | I35: =VLOOKUP(L35,$B$46:$C$53,2,0) -> LYAN-FFC | L35: 2 | AE35: LYAN-FFC | AF35: 0 | AG35: 0 | AH35: VAGO-W.O | AK35: 0 | AL35: 0 | AM35: 0 | AN35: 0
B36: 7ª RODADA | M36: MESA | AE36: 0 | AF36: 0 | AG36: 0 | AH36: 0 | AK36: 0 | AL36: 0 | AM36: 0 | AN36: 0
B37: 1 | C37: =VLOOKUP(B37,$B$46:$C$53,2,0) -> ROMAR-CRVG | F37: 5 | G37: X | H37: 3 | I37: =VLOOKUP(L37,$B$46:$C$53,2,0) -> LYAN-FFC | L37: 2 | M37: 4 | AE37: ROMAR-CRVG | AF37: 0 | AG37: 0 | AH37: LYAN-FFC | AK37: 0 | AL37: 0 | AM37: 0 | AN37: 0
B38: 5 | C38: =VLOOKUP(B38,$B$46:$C$53,2,0) -> B. ASSUMPÇÃO-BQ | F38: 1 | G38: X | H38: 0 | I38: =VLOOKUP(L38,$B$46:$C$53,2,0) -> VAGO-W.O | L38: 8 | M38: 5 | AE38: B. ASSUMPÇÃO-BQ | AF38: 0 | AG38: 0 | AH38: VAGO-W.O | AK38: 0 | AL38: 0 | AM38: 0 | AN38: 0
B39: 6 | C39: =VLOOKUP(B39,$B$46:$C$53,2,0) -> MARCELO-BQ | F39: 2 | G39: X | H39: 3 | I39: =VLOOKUP(L39,$B$46:$C$53,2,0) -> TAVARES-CRVG | L39: 4 | M39: 6 | AE39: TAVARES-CRVG | AF39: 0 | AG39: 0 | AH39: MARCELO-BQ | AK39: 0 | AL39: 0 | AM39: 0 | AN39: 0
B40: 7 | C40: =VLOOKUP(B40,$B$46:$C$53,2,0) -> P.CARUSO-AABB-DF | F40: 2 | G40: X | H40: 1 | I40: =VLOOKUP(L40,$B$46:$C$53,2,0) -> FELIPE-CRF | L40: 3 | AE40: P.CARUSO-AABB-DF | AF40: 0 | AG40: 0 | AH40: FELIPE-CRF | AK40: 0 | AL40: 0 | AM40: 0 | AN40: 0
AE41: 0 | AF41: 0 | AG41: 0 | AH41: 0 | AK41: 0 | AL41: 0 | AM41: 0 | AN41: 0
AE42: 0 | AF42: 0 | AG42: 0 | AH42: 0 | AK42: 0 | AL42: 0 | AM42: 0 | AN42: 0
AK43: 0 | AL43: 0 | AM43: 0 | AN43: 0
B44: PONTOS
B45: Equipes | F45: PG | G45: J | H45: V | I45: E | J45: D | K45: GP | L45: GC | M45: SG | N45: APROV
A46: 1º | B46: 1 | C46: ROMAR-CRVG | F46: =H46*3+I46*1 -> 18 | G46: =SUM(H46:J46) -> 7 | H46: =COUNTIF($AE$7:$AE$40,C46)+COUNTIF($AK$7:$AK$40,C46) -> 6 | I46: =COUNTIF($AF$7:$AG$40,C46)+COUNTIF($AL$7:$AM$37,C46) -> 0 | J46: =COUNTIF($AH$7:$AH$40,C46)+COUNTIF($AN$7:$AN$37,C46) -> 1 | K46: =SUMIF($C$7:$C$40,$C46,$F$7:$F$40)+SUMIF($I$7:$I$40,$C46,$H$7:$H$40)+SUMIF($O$7:$O$40,$C46,$R$7:$R$40)+SUMIF($U$7:$U$40,$C46,$T$7:$T$40) -> 21 | L46: =SUMIF($C$7:$C$40,$C46,$H$7:$H$40)+SUMIF($I$7:$I$40,$C46,$F$7:$F$40)+SUMIF($O$7:$O$40,$C46,$T$7:$T$40)+SUMIF($U$7:$U$40,$C46,$R$7:$R$40) -> 11 | M46: =K46-L46 -> 10 | N46: =F46/(G46*3) -> 86%
A47: 2º | B47: 3 | C47: FELIPE-CRF | F47: 15 | G47: 7 | H47: 5 | I47: 0 | J47: 2 | K47: 16 | L47: 13 | M47: 3 | N47: 71%
A48: 3º | B48: 7 | C48: P.CARUSO-AABB-DF | F48: 13 | G48: 7 | H48: 4 | I48: 1 | J48: 2 | K48: 16 | L48: 13 | M48: 3 | N48: 62%
A49: 4º | B49: 2 | C49: LYAN-FFC | F49: 12 | G49: 7 | H49: 4 | I49: 0 | J49: 3 | K49: 23 | L49: 17 | M49: 6 | N49: 57%
A50: 5º | B50: 4 | C50: TAVARES-CRVG | F50: 12 | G50: 7 | H50: 4 | I50: 0 | J50: 3 | K50: 21 | L50: 21 | M50: 0 | N50: 57%
A51: 6º | B51: 6 | C51: MARCELO-BQ | F51: 7 | G51: 7 | H51: 2 | I51: 1 | J51: 4 | K51: 9 | L51: 17 | M51: -8 | N51: 33%
A52: 7º | B52: 5 | C52: B. ASSUMPÇÃO-BQ | F52: 6 | G52: 7 | H52: 2 | I52: 0 | J52: 5 | K52: 7 | L52: 14 | M52: -7 | N52: 29%
A53: 8º | B53: 8 | C53: VAGO-W.O | F53: 0 | G53: 7 | H53: 0 | I53: 0 | J53: 7 | K53: 0 | L53: 7 | M53: -7 | N53: 0%

Sheet C
AE5: 3 | AF5: 1 | AG5: 1 | AH5: 0 | AK5: 3 | AL5: 1 | AM5: 1 | AN5: 0
B6: 1ª RODADA | M6: MESA | AE6: Vitórias | AF6: Empates | AG6: Empates | AH6: Derrotas | AK6: Vitórias | AL6: Empates | AM6: Empates | AN6: Derrotas
B7: 1 | C7: =VLOOKUP(B7,$B$46:$C$53,2,0) -> BRAYNER-CRVG | F7: 1 | G7: X | H7: 0 | I7: =VLOOKUP(L7,$B$46:$C$53,2,0) -> VAGO-W.O | L7: 8 | M7: 7 | AE7: =IF(F7>H7,C7,IF(F7=H7,0,I7)) -> BRAYNER-CRVG | AF7: =(IF(F7<>"-",(IF(F7=H7,C7,0)),0)) -> 0 | AG7: =(IF(F7<>"-",(IF(F7=H7,I7,0)),0)) -> 0 | AH7: =IF(F7<H7,C7,IF(F7=H7,0,I7)) -> VAGO-W.O | AK7: =IF(R7>T7,O7,IF(R7=T7,0,U7)) -> 0 | AL7: =(IF(R7<>"-",(IF(R7=T7,O7,0)),0)) -> 0 | AM7: =(IF(R7<>"-",(IF(R7=T7,U7,0)),0)) -> 0 | AN7: =IF(R7<T7,O7,IF(R7=T7,0,U7)) -> 0
B8: 2 | C8: =VLOOKUP(B8,$B$46:$C$53,2,0) -> ALMO-CC | F8: 4 | G8: X | H8: 3 | I8: =VLOOKUP(L8,$B$46:$C$53,2,0) -> CARLOS-APCEF-DF | L8: 7 | M8: 8 | AE8: ALMO-CC | AF8: 0 | AG8: 0 | AH8: CARLOS-APCEF-DF | AK8: 0 | AL8: 0 | AM8: 0 | AN8: 0
B9: 3 | C9: =VLOOKUP(B9,$B$46:$C$53,2,0) -> GILBERTO-ASBAC | F9: 2 | G9: X | H9: 3 | I9: =VLOOKUP(L9,$B$46:$C$53,2,0) -> GIUSEPE-BOT-DF | L9: 6 | M9: 9 | AE9: GIUSEPE-BOT-DF | AF9: 0 | AG9: 0 | AH9: GILBERTO-ASBAC | AK9: 0 | AL9: 0 | AM9: 0 | AN9: 0
B10: 4 | C10: =VLOOKUP(B10,$B$46:$C$53,2,0) -> REBEL-ADDP | F10: 2 | G10: X | H10: 1 | I10: =VLOOKUP(L10,$B$46:$C$53,2,0) -> NILSON-CC | L10: 5 | AE10: REBEL-ADDP | AF10: 0 | AG10: 0 | AH10: NILSON-CC | AK10: 0 | AL10: 0 | AM10: 0 | AN10: 0
B11: 2ª RODADA | M11: MESA | AE11: 0 | AF11: 0 | AG11: 0 | AH11: 0 | AK11: 0 | AL11: 0 | AM11: 0 | AN11: 0
B12: 5 | C12: =VLOOKUP(B12,$B$46:$C$53,2,0) -> NILSON-CC | F12: 1 | G12: X | H12: 4 | I12: =VLOOKUP(L12,$B$46:$C$53,2,0) -> GILBERTO-ASBAC | L12: 3 | M12: 7 | AE12: GILBERTO-ASBAC | AF12: 0 | AG12: 0 | AH12: NILSON-CC | AK12: 0 | AL12: 0 | AM12: 0 | AN12: 0
B13: 6 | C13: =VLOOKUP(B13,$B$46:$C$53,2,0) -> GIUSEPE-BOT-DF | F13: 1 | G13: X | H13: 1 | I13: =VLOOKUP(L13,$B$46:$C$53,2,0) -> ALMO-CC | L13: 2 | M13: 8 | AE13: 0 | AF13: GIUSEPE-BOT-DF | AG13: ALMO-CC | AH13: 0 | AK13: 0 | AL13: 0 | AM13: 0 | AN13: 0
B14: 7 | C14: =VLOOKUP(B14,$B$46:$C$53,2,0) -> CARLOS-APCEF-DF | F14: 2 | G14: X | H14: 6 | I14: =VLOOKUP(L14,$B$46:$C$53,2,0) -> BRAYNER-CRVG | L14: 1 | M14: 9 | AE14: BRAYNER-CRVG | AF14: 0 | AG14: 0 | AH14: CARLOS-APCEF-DF | AK14: 0 | AL14: 0 | AM14: 0 | AN14: 0
B15: 8 | C15: =VLOOKUP(B15,$B$46:$C$53,2,0) -> VAGO-W.O | F15: 0 | G15: X | H15: 1 | I15: =VLOOKUP(L15,$B$46:$C$53,2,0) -> REBEL-ADDP | L15: 4 | AE15: REBEL-ADDP | AF15: 0 | AG15: 0 | AH15: VAGO-W.O | AK15: 0 | AL15: 0 | AM15: 0 | AN15: 0
B16: 3ª RODADA | M16: MESA | AE16: 0 | AF16: 0 | AG16: 0 | AH16: 0 | AK16: 0 | AL16: 0 | AM16: 0 | AN16: 0
B17: 1 | C17: =VLOOKUP(B17,$B$46:$C$53,2,0) -> BRAYNER-CRVG | F17: 2 | G17: X | H17: 1 | I17: =VLOOKUP(L17,$B$46:$C$53,2,0) -> GIUSEPE-BOT-DF | L17: 6 | M17: 7 | AE17: BRAYNER-CRVG | AF17: 0 | AG17: 0 | AH17: GIUSEPE-BOT-DF | AK17: 0 | AL17: 0 | AM17: 0 | AN17: 0
B18: 2 | C18: =VLOOKUP(B18,$B$46:$C$53,2,0) -> ALMO-CC | F18: 2 | G18: X | H18: 1 | I18: =VLOOKUP(L18,$B$46:$C$53,2,0) -> NILSON-CC | L18: 5 | M18: 8 | AE18: ALMO-CC | AF18: 0 | AG18: 0 | AH18: NILSON-CC | AK18: 0 | AL18: 0 | AM18: 0 | AN18: 0
B19: 3 | C19: =VLOOKUP(B19,$B$46:$C$53,2,0) -> GILBERTO-ASBAC | F19: 6 | G19: X | H19: 3 | I19: =VLOOKUP(L19,$B$46:$C$53,2,0) -> REBEL-ADDP | L19: 4 | M19: 9 | AE19: GILBERTO-ASBAC | AF19: 0 | AG19: 0 | AH19: REBEL-ADDP | AK19: 0 | AL19: 0 | AM19: 0 | AN19: 0
B20: 7 | C20: =VLOOKUP(B20,$B$46:$C$53,2,0) -> CARLOS-APCEF-DF | F20: 1 | G20: X | H20: 0 | I20: =VLOOKUP(L20,$B$46:$C$53,2,0) -> VAGO-W.O | L20: 8 | AE20: CARLOS-APCEF-DF | AF20: 0 | AG20: 0 | AH20: VAGO-W.O | AK20: 0 | AL20: 0 | AM20: 0 | AN20: 0
B21: 4ª RODADA | M21: MESA | AE21: 0 | AF21: 0 | AG21: 0 | AH21: 0 | AK21: 0 | AL21: 0 | AM21: 0 | AN21: 0
B22: 3 | C22: =VLOOKUP(B22,$B$46:$C$53,2,0) -> GILBERTO-ASBAC | F22: 1 | G22: X | H22: 0 | I22: =VLOOKUP(L22,$B$46:$C$53,2,0) -> VAGO-W.O | L22: 8 | M22: 7 | AE22: GILBERTO-ASBAC | AF22: 0 | AG22: 0 | AH22: VAGO-W.O | AK22: 0 | AL22: 0 | AM22: 0 | AN22: 0
B23: 4 | C23: =VLOOKUP(B23,$B$46:$C$53,2,0) -> REBEL-ADDP | F23: 2 | G23: X | H23: 3 | I23: =VLOOKUP(L23,$B$46:$C$53,2,0) -> ALMO-CC | L23: 2 | M23: 8 | AE23: ALMO-CC | AF23: 0 | AG23: 0 | AH23: REBEL-ADDP | AK23: 0 | AL23: 0 | AM23: 0 | AN23: 0
B24: 5 | C24: =VLOOKUP(B24,$B$46:$C$53,2,0) -> NILSON-CC | F24: 1 | G24: X | H24: 2 | I24: =VLOOKUP(L24,$B$46:$C$53,2,0) -> BRAYNER-CRVG | L24: 1 | M24: 9 | AE24: BRAYNER-CRVG | AF24: 0 | AG24: 0 | AH24: NILSON-CC | AK24: 0 | AL24: 0 | AM24: 0 | AN24: 0
B25: 6 | C25: =VLOOKUP(B25,$B$46:$C$53,2,0) -> GIUSEPE-BOT-DF | F25: 4 | G25: X | H25: 3 | I25: =VLOOKUP(L25,$B$46:$C$53,2,0) -> CARLOS-APCEF-DF | L25: 7 | AE25: GIUSEPE-BOT-DF | AF25: 0 | AG25: 0 | AH25: CARLOS-APCEF-DF | AK25: 0 | AL25: 0 | AM25: 0 | AN25: 0
B26: 5ª RODADA | M26: MESA | AE26: 0 | AF26: 0 | AG26: 0 | AH26: 0 | AK26: 0 | AL26: 0 | AM26: 0 | AN26: 0
B27: 1 | C27: =VLOOKUP(B27,$B$46:$C$53,2,0) -> BRAYNER-CRVG | F27: 5 | G27: X | H27: 1 | I27: =VLOOKUP(L27,$B$46:$C$53,2,0) -> REBEL-ADDP | L27: 4 | M27: 7 | AE27: BRAYNER-CRVG | AF27: 0 | AG27: 0 | AH27: REBEL-ADDP | AK27: 0 | AL27: 0 | AM27: 0 | AN27: 0
B28: 2 | C28: =VLOOKUP(B28,$B$46:$C$53,2,0) -> ALMO-CC | F28: 5 | G28: X | H28: 2 | I28: =VLOOKUP(L28,$B$46:$C$53,2,0) -> GILBERTO-ASBAC | L28: 3 | M28: 8 | AE28: ALMO-CC | AF28: 0 | AG28: 0 | AH28: GILBERTO-ASBAC | AK28: 0 | AL28: 0 | AM28: 0 | AN28: 0
B29: 7 | C29: =VLOOKUP(B29,$B$46:$C$53,2,0) -> CARLOS-APCEF-DF | F29: 1 | G29: X | H29: 4 | I29: =VLOOKUP(L29,$B$46:$C$53,2,0) -> NILSON-CC | L29: 5 | M29: 9 | AE29: NILSON-CC | AF29: 0 | AG29: 0 | AH29: CARLOS-APCEF-DF | AK29: 0 | AL29: 0 | AM29: 0 | AN29: 0
B30: 8 | C30: =VLOOKUP(B30,$B$46:$C$53,2,0) -> VAGO-W.O | F30: 0 | G30: X | H30: 1 | I30: =VLOOKUP(L30,$B$46:$C$53,2,0) -> GIUSEPE-BOT-DF | L30: 6 | AE30: GIUSEPE-BOT-DF | AF30: 0 | AG30: 0 | AH30: VAGO-W.O | AK30: 0 | AL30: 0 | AM30: 0 | AN30: 0
B31: 6ª RODADA | M31: MESA | AE31: 0 | AF31: 0 | AG31: 0 | AH31: 0 | AK31: 0 | AL31: 0 | AM31: 0 | AN31: 0
B32: 3 | C32: =VLOOKUP(B32,$B$46:$C$53,2,0) -> GILBERTO-ASBAC | F32: 2 | G32: X | H32: 5 | I32: =VLOOKUP(L32,$B$46:$C$53,2,0) -> BRAYNER-CRVG | L32: 1 | M32: 7 | AE32: BRAYNER-CRVG | AF32: 0 | AG32: 0 | AH32: GILBERTO-ASBAC | AK32: 0 | AL32: 0 | AM32: 0 | AN32: 0
B33: 4 | C33: =VLOOKUP(B33,$B$46:$C$53,2,0) -> REBEL-ADDP | F33: 2 | G33: X | H33: 1 | I33: =VLOOKUP(L33,$B$46:$C$53,2,0) -> CARLOS-APCEF-DF | L33: 7 | M33: 8 | AE33: REBEL-ADDP | AF33: 0 | AG33: 0 | AH33: CARLOS-APCEF-DF | AK33: 0 | AL33: 0 | AM33: 0 | AN33: 0
B34: 5 | C34: =VLOOKUP(B34,$B$46:$C$53,2,0) -> NILSON-CC | F34: 1 | G34: X | H34: 2 | I34: =VLOOKUP(L34,$B$46:$C$53,2,0) -> GIUSEPE-BOT-DF | L34: 6 | M34: 9 | AE34: GIUSEPE-BOT-DF | AF34: 0 | AG34: 0 | AH34: NILSON-CC | AK34: 0 | AL34: 0 | AM34: 0 | AN34: 0
B35: 8 | C35: =VLOOKUP(B35,$B$46:$C$53,2,0) -> VAGO-W.O | F35: 0 | G35: X | H35: 1 | I35: =VLOOKUP(L35,$B$46:$C$53,2,0) -> ALMO-CC | L35: 2 | AE35: ALMO-CC | AF35: 0 | AG35: 0 | AH35: VAGO-W.O | AK35: 0 | AL35: 0 | AM35: 0 | AN35: 0
B36: 7ª RODADA | M36: MESA | AE36: 0 | AF36: 0 | AG36: 0 | AH36: 0 | AK36: 0 | AL36: 0 | AM36: 0 | AN36: 0
B37: 1 | C37: =VLOOKUP(B37,$B$46:$C$53,2,0) -> BRAYNER-CRVG | F37: 5 | G37: X | H37: 5 | I37: =VLOOKUP(L37,$B$46:$C$53,2,0) -> ALMO-CC | L37: 2 | M37: 7 | AE37: 0 | AF37: BRAYNER-CRVG | AG37: ALMO-CC | AH37: 0 | AK37: 0 | AL37: 0 | AM37: 0 | AN37: 0
B38: 5 | C38: =VLOOKUP(B38,$B$46:$C$53,2,0) -> NILSON-CC | F38: 1 | G38: X | H38: 0 | I38: =VLOOKUP(L38,$B$46:$C$53,2,0) -> VAGO-W.O | L38: 8 | M38: 8 | AE38: NILSON-CC | AF38: 0 | AG38: 0 | AH38: VAGO-W.O | AK38: 0 | AL38: 0 | AM38: 0 | AN38: 0
B39: 6 | C39: =VLOOKUP(B39,$B$46:$C$53,2,0) -> GIUSEPE-BOT-DF | F39: 4 | G39: X | H39: 1 | I39: =VLOOKUP(L39,$B$46:$C$53,2,0) -> REBEL-ADDP | L39: 4 | M39: 9 | AE39: GIUSEPE-BOT-DF | AF39: 0 | AG39: 0 | AH39: REBEL-ADDP | AK39: 0 | AL39: 0 | AM39: 0 | AN39: 0
B40: 7 | C40: =VLOOKUP(B40,$B$46:$C$53,2,0) -> CARLOS-APCEF-DF | F40: 3 | G40: X | H40: 2 | I40: =VLOOKUP(L40,$B$46:$C$53,2,0) -> GILBERTO-ASBAC | L40: 3 | AE40: CARLOS-APCEF-DF | AF40: 0 | AG40: 0 | AH40: GILBERTO-ASBAC | AK40: 0 | AL40: 0 | AM40: 0 | AN40: 0
AE41: 0 | AF41: 0 | AG41: 0 | AH41: 0 | AK41: 0 | AL41: 0 | AM41: 0 | AN41: 0
AE42: 0 | AF42: 0 | AG42: 0 | AH42: 0 | AK42: 0 | AL42: 0 | AM42: 0 | AN42: 0
AK43: 0 | AL43: 0 | AM43: 0 | AN43: 0
B44: PONTOS
B45: Equipes | F45: PG | G45: J | H45: V | I45: E | J45: D | K45: GP | L45: GC | M45: SG | N45: APROV
A46: 1º | B46: 1 | C46: BRAYNER-CRVG | F46: =H46*3+I46*1 -> 19 | G46: =SUM(H46:J46) -> 7 | H46: =COUNTIF($AE$7:$AE$40,C46)+COUNTIF($AK$7:$AK$40,C46) -> 6 | I46: =COUNTIF($AF$7:$AG$40,C46)+COUNTIF($AL$7:$AM$37,C46) -> 1 | J46: =COUNTIF($AH$7:$AH$40,C46)+COUNTIF($AN$7:$AN$37,C46) -> 0 | K46: =SUMIF($C$7:$C$40,$C46,$F$7:$F$40)+SUMIF($I$7:$I$40,$C46,$H$7:$H$40)+SUMIF($O$7:$O$40,$C46,$R$7:$R$40)+SUMIF($U$7:$U$40,$C46,$T$7:$T$40) -> 26 | L46: =SUMIF($C$7:$C$40,$C46,$H$7:$H$40)+SUMIF($I$7:$I$40,$C46,$F$7:$F$40)+SUMIF($O$7:$O$40,$C46,$T$7:$T$40)+SUMIF($U$7:$U$40,$C46,$R$7:$R$40) -> 12 | M46: =K46-L46 -> 14 | N46: =F46/(G46*3) -> 90%
A47: 2º | B47: 2 | C47: ALMO-CC | F47: 17 | G47: 7 | H47: 5 | I47: 2 | J47: 0 | K47: 21 | L47: 14 | M47: 7 | N47: 81%
A48: 3º | B48: 6 | C48: GIUSEPE-BOT-DF | F48: 16 | G48: 7 | H48: 5 | I48: 1 | J48: 1 | K48: 16 | L48: 10 | M48: 6 | N48: 76%
A49: 4º | B49: 3 | C49: GILBERTO-ASBAC | F49: 9 | G49: 7 | H49: 3 | I49: 0 | J49: 4 | K49: 19 | L49: 20 | M49: -1 | N49: 43%
A50: 5º | B50: 4 | C50: REBEL-ADDP | F50: 9 | G50: 7 | H50: 3 | I50: 0 | J50: 4 | K50: 12 | L50: 20 | M50: -8 | N50: 43%
A51: 6º | B51: 5 | C51: NILSON-CC | F51: 6 | G51: 7 | H51: 2 | I51: 0 | J51: 5 | K51: 10 | L51: 13 | M51: -3 | N51: 29%
A52: 7º | B52: 7 | C52: CARLOS-APCEF-DF | F52: 6 | G52: 7 | H52: 2 | I52: 0 | J52: 5 | K52: 14 | L52: 22 | M52: -8 | N52: 29%
A53: 8º | B53: 8 | C53: VAGO-W.O | F53: 0 | G53: 7 | H53: 0 | I53: 0 | J53: 7 | K53: 0 | L53: 7 | M53: -7 | N53: 0%

Sheet D
AE5: 3 | AF5: 1 | AG5: 1 | AH5: 0 | AK5: 3 | AL5: 1 | AM5: 1 | AN5: 0
B6: 1ª RODADA | M6: MESA | AE6: Vitórias | AF6: Empates | AG6: Empates | AH6: Derrotas | AK6: Vitórias | AL6: Empates | AM6: Empates | AN6: Derrotas
B7: 1 | C7: =VLOOKUP(B7,$B$46:$C$53,2,0) -> RICARDO-CRF | F7: 1 | G7: X | H7: 0 | I7: =VLOOKUP(L7,$B$46:$C$53,2,0) -> VAGO-W.O | L7: 8 | M7: 10 | AE7: =IF(F7>H7,C7,IF(F7=H7,0,I7)) -> RICARDO-CRF | AF7: =(IF(F7<>"-",(IF(F7=H7,C7,0)),0)) -> 0 | AG7: =(IF(F7<>"-",(IF(F7=H7,I7,0)),0)) -> 0 | AH7: =IF(F7<H7,C7,IF(F7=H7,0,I7)) -> VAGO-W.O | AK7: =IF(R7>T7,O7,IF(R7=T7,0,U7)) -> 0 | AL7: =(IF(R7<>"-",(IF(R7=T7,O7,0)),0)) -> 0 | AM7: =(IF(R7<>"-",(IF(R7=T7,U7,0)),0)) -> 0 | AN7: =IF(R7<T7,O7,IF(R7=T7,0,U7)) -> 0
B8: 2 | C8: =VLOOKUP(B8,$B$46:$C$53,2,0) -> LOPES-RIVER | F8: 2 | G8: X | H8: 2 | I8: =VLOOKUP(L8,$B$46:$C$53,2,0) -> EDWARD-BQ | L8: 7 | M8: 11 | AE8: 0 | AF8: LOPES-RIVER | AG8: EDWARD-BQ | AH8: 0 | AK8: 0 | AL8: 0 | AM8: 0 | AN8: 0
B9: 3 | C9: =VLOOKUP(B9,$B$46:$C$53,2,0) -> DANIEL-CRVG | F9: 0 | G9: X | H9: 1 | I9: =VLOOKUP(L9,$B$46:$C$53,2,0) -> ROGÉRIO-APCEF | L9: 6 | M9: 12 | AE9: ROGÉRIO-APCEF | AF9: 0 | AG9: 0 | AH9: DANIEL-CRVG | AK9: 0 | AL9: 0 | AM9: 0 | AN9: 0
B10: 4 | C10: =VLOOKUP(B10,$B$46:$C$53,2,0) -> LUCIANO-CRF | F10: 2 | G10: X | H10: 1 | I10: =VLOOKUP(L10,$B$46:$C$53,2,0) -> KLAUS-APCEF | L10: 5 | AE10: LUCIANO-CRF | AF10: 0 | AG10: 0 | AH10: KLAUS-APCEF | AK10: 0 | AL10: 0 | AM10: 0 | AN10: 0
B11: 2ª RODADA | M11: MESA | AE11: 0 | AF11: 0 | AG11: 0 | AH11: 0 | AK11: 0 | AL11: 0 | AM11: 0 | AN11: 0
B12: 5 | C12: =VLOOKUP(B12,$B$46:$C$53,2,0) -> KLAUS-APCEF | F12: 1 | G12: X | H12: 0 | I12: =VLOOKUP(L12,$B$46:$C$53,2,0) -> DANIEL-CRVG | L12: 3 | M12: 10 | AE12: KLAUS-APCEF | AF12: 0 | AG12: 0 | AH12: DANIEL-CRVG | AK12: 0 | AL12: 0 | AM12: 0 | AN12: 0
B13: 6 | C13: =VLOOKUP(B13,$B$46:$C$53,2,0) -> ROGÉRIO-APCEF | F13: 0 | G13: X | H13: 2 | I13: =VLOOKUP(L13,$B$46:$C$53,2,0) -> LOPES-RIVER | L13: 2 | M13: 11 | AE13: LOPES-RIVER | AF13: 0 | AG13: 0 | AH13: ROGÉRIO-APCEF | AK13: 0 | AL13: 0 | AM13: 0 | AN13: 0
B14: 7 | C14: =VLOOKUP(B14,$B$46:$C$53,2,0) -> EDWARD-BQ | F14: 2 | G14: X | H14: 1 | I14: =VLOOKUP(L14,$B$46:$C$53,2,0) -> RICARDO-CRF | L14: 1 | M14: 12 | AE14: EDWARD-BQ | AF14: 0 | AG14: 0 | AH14: RICARDO-CRF | AK14: 0 | AL14: 0 | AM14: 0 | AN14: 0
B15: 8 | C15: =VLOOKUP(B15,$B$46:$C$53,2,0) -> VAGO-W.O | F15: 0 | G15: X | H15: 1 | I15: =VLOOKUP(L15,$B$46:$C$53,2,0) -> LUCIANO-CRF | L15: 4 | AE15: LUCIANO-CRF | AF15: 0 | AG15: 0 | AH15: VAGO-W.O | AK15: 0 | AL15: 0 | AM15: 0 | AN15: 0
B16: 3ª RODADA | M16: MESA | AE16: 0 | AF16: 0 | AG16: 0 | AH16: 0 | AK16: 0 | AL16: 0 | AM16: 0 | AN16: 0
B17: 1 | C17: =VLOOKUP(B17,$B$46:$C$53,2,0) -> RICARDO-CRF | F17: 4 | G17: X | H17: 3 | I17: =VLOOKUP(L17,$B$46:$C$53,2,0) -> ROGÉRIO-APCEF | L17: 6 | M17: 10 | AE17: RICARDO-CRF | AF17: 0 | AG17: 0 | AH17: ROGÉRIO-APCEF | AK17: 0 | AL17: 0 | AM17: 0 | AN17: 0
B18: 2 | C18: =VLOOKUP(B18,$B$46:$C$53,2,0) -> LOPES-RIVER | F18: 6 | G18: X | H18: 2 | I18: =VLOOKUP(L18,$B$46:$C$53,2,0) -> KLAUS-APCEF | L18: 5 | M18: 11 | AE18: LOPES-RIVER | AF18: 0 | AG18: 0 | AH18: KLAUS-APCEF | AK18: 0 | AL18: 0 | AM18: 0 | AN18: 0
B19: 3 | C19: =VLOOKUP(B19,$B$46:$C$53,2,0) -> DANIEL-CRVG | F19: 0 | G19: X | H19: 1 | I19: =VLOOKUP(L19,$B$46:$C$53,2,0) -> LUCIANO-CRF | L19: 4 | M19: 12 | AE19: LUCIANO-CRF | AF19: 0 | AG19: 0 | AH19: DANIEL-CRVG | AK19: 0 | AL19: 0 | AM19: 0 | AN19: 0
B20: 7 | C20: =VLOOKUP(B20,$B$46:$C$53,2,0) -> EDWARD-BQ | F20: 1 | G20: X | H20: 0 | I20: =VLOOKUP(L20,$B$46:$C$53,2,0) -> VAGO-W.O | L20: 8 | AE20: EDWARD-BQ | AF20: 0 | AG20: 0 | AH20: VAGO-W.O | AK20: 0 | AL20: 0 | AM20: 0 | AN20: 0
B21: 4ª RODADA | M21: MESA | AE21: 0 | AF21: 0 | AG21: 0 | AH21: 0 | AK21: 0 | AL21: 0 | AM21: 0 | AN21: 0
B22: 3 | C22: =VLOOKUP(B22,$B$46:$C$53,2,0) -> DANIEL-CRVG | F22: 0 | G22: X | H22: 0 | I22: =VLOOKUP(L22,$B$46:$C$53,2,0) -> VAGO-W.O | L22: 8 | M22: 10 | AE22: 0 | AF22: DANIEL-CRVG | AG22: VAGO-W.O | AH22: 0 | AK22: 0 | AL22: 0 | AM22: 0 | AN22: 0
B23: 4 | C23: =VLOOKUP(B23,$B$46:$C$53,2,0) -> LUCIANO-CRF | F23: 3 | G23: X | H23: 3 | I23: =VLOOKUP(L23,$B$46:$C$53,2,0) -> LOPES-RIVER | L23: 2 | M23: 11 | AE23: 0 | AF23: LUCIANO-CRF | AG23: LOPES-RIVER | AH23: 0 | AK23: 0 | AL23: 0 | AM23: 0 | AN23: 0
B24: 5 | C24: =VLOOKUP(B24,$B$46:$C$53,2,0) -> KLAUS-APCEF | F24: 3 | G24: X | H24: 7 | I24: =VLOOKUP(L24,$B$46:$C$53,2,0) -> RICARDO-CRF | L24: 1 | M24: 12 | AE24: RICARDO-CRF | AF24: 0 | AG24: 0 | AH24: KLAUS-APCEF | AK24: 0 | AL24: 0 | AM24: 0 | AN24: 0
B25: 6 | C25: =VLOOKUP(B25,$B$46:$C$53,2,0) -> ROGÉRIO-APCEF | F25: 2 | G25: X | H25: 2 | I25: =VLOOKUP(L25,$B$46:$C$53,2,0) -> EDWARD-BQ | L25: 7 | AE25: 0 | AF25: ROGÉRIO-APCEF | AG25: EDWARD-BQ | AH25: 0 | AK25: 0 | AL25: 0 | AM25: 0 | AN25: 0
B26: 5ª RODADA | M26: MESA | AE26: 0 | AF26: 0 | AG26: 0 | AH26: 0 | AK26: 0 | AL26: 0 | AM26: 0 | AN26: 0
B27: 1 | C27: =VLOOKUP(B27,$B$46:$C$53,2,0) -> RICARDO-CRF | F27: 4 | G27: X | H27: 1 | I27: =VLOOKUP(L27,$B$46:$C$53,2,0) -> LUCIANO-CRF | L27: 4 | M27: 10 | AE27: RICARDO-CRF | AF27: 0 | AG27: 0 | AH27: LUCIANO-CRF | AK27: 0 | AL27: 0 | AM27: 0 | AN27: 0
B28: 2 | C28: =VLOOKUP(B28,$B$46:$C$53,2,0) -> LOPES-RIVER | F28: 1 | G28: X | H28: 0 | I28: =VLOOKUP(L28,$B$46:$C$53,2,0) -> DANIEL-CRVG | L28: 3 | M28: 11 | AE28: LOPES-RIVER | AF28: 0 | AG28: 0 | AH28: DANIEL-CRVG | AK28: 0 | AL28: 0 | AM28: 0 | AN28: 0
B29: 7 | C29: =VLOOKUP(B29,$B$46:$C$53,2,0) -> EDWARD-BQ | F29: 2 | G29: X | H29: 1 | I29: =VLOOKUP(L29,$B$46:$C$53,2,0) -> KLAUS-APCEF | L29: 5 | M29: 12 | AE29: EDWARD-BQ | AF29: 0 | AG29: 0 | AH29: KLAUS-APCEF | AK29: 0 | AL29: 0 | AM29: 0 | AN29: 0
B30: 8 | C30: =VLOOKUP(B30,$B$46:$C$53,2,0) -> VAGO-W.O | F30: 0 | G30: X | H30: 1 | I30: =VLOOKUP(L30,$B$46:$C$53,2,0) -> ROGÉRIO-APCEF | L30: 6 | AE30: ROGÉRIO-APCEF | AF30: 0 | AG30: 0 | AH30: VAGO-W.O | AK30: 0 | AL30: 0 | AM30: 0 | AN30: 0
B31: 6ª RODADA | M31: MESA | AE31: 0 | AF31: 0 | AG31: 0 | AH31: 0 | AK31: 0 | AL31: 0 | AM31: 0 | AN31: 0
B32: 3 | C32: =VLOOKUP(B32,$B$46:$C$53,2,0) -> DANIEL-CRVG | F32: 0 | G32: X | H32: 1 | I32: =VLOOKUP(L32,$B$46:$C$53,2,0) -> RICARDO-CRF | L32: 1 | M32: 10 | AE32: RICARDO-CRF | AF32: 0 | AG32: 0 | AH32: DANIEL-CRVG | AK32: 0 | AL32: 0 | AM32: 0 | AN32: 0
B33: 4 | C33: =VLOOKUP(B33,$B$46:$C$53,2,0) -> LUCIANO-CRF | F33: 3 | G33: X | H33: 1 | I33: =VLOOKUP(L33,$B$46:$C$53,2,0) -> EDWARD-BQ | L33: 7 | M33: 11 | AE33: LUCIANO-CRF | AF33: 0 | AG33: 0 | AH33: EDWARD-BQ | AK33: 0 | AL33: 0 | AM33: 0 | AN33: 0
B34: 5 | C34: =VLOOKUP(B34,$B$46:$C$53,2,0) -> KLAUS-APCEF | F34: 1 | G34: X | H34: 3 | I34: =VLOOKUP(L34,$B$46:$C$53,2,0) -> ROGÉRIO-APCEF | L34: 6 | M34: 12 | AE34: ROGÉRIO-APCEF | AF34: 0 | AG34: 0 | AH34: KLAUS-APCEF | AK34: 0 | AL34: 0 | AM34: 0 | AN34: 0
B35: 8 | C35: =VLOOKUP(B35,$B$46:$C$53,2,0) -> VAGO-W.O | F35: 0 | G35: X | H35: 1 | I35: =VLOOKUP(L35,$B$46:$C$53,2,0) -> LOPES-RIVER | L35: 2 | AE35: LOPES-RIVER | AF35: 0 | AG35: 0 | AH35: VAGO-W.O | AK35: 0 | AL35: 0 | AM35: 0 | AN35: 0
B36: 7ª RODADA | M36: MESA | AE36: 0 | AF36: 0 | AG36: 0 | AH36: 0 | AK36: 0 | AL36: 0 | AM36: 0 | AN36: 0
B37: 1 | C37: =VLOOKUP(B37,$B$46:$C$53,2,0) -> RICARDO-CRF | F37: 4 | G37: X | H37: 3 | I37: =VLOOKUP(L37,$B$46:$C$53,2,0) -> LOPES-RIVER | L37: 2 | M37: 10 | AE37: RICARDO-CRF | AF37: 0 | AG37: 0 | AH37: LOPES-RIVER | AK37: 0 | AL37: 0 | AM37: 0 | AN37: 0
B38: 5 | C38: =VLOOKUP(B38,$B$46:$C$53,2,0) -> KLAUS-APCEF | F38: 1 | G38: X | H38: 0 | I38: =VLOOKUP(L38,$B$46:$C$53,2,0) -> VAGO-W.O | L38: 8 | M38: 11 | AE38: KLAUS-APCEF | AF38: 0 | AG38: 0 | AH38: VAGO-W.O | AK38: 0 | AL38: 0 | AM38: 0 | AN38: 0
B39: 6 | C39: =VLOOKUP(B39,$B$46:$C$53,2,0) -> ROGÉRIO-APCEF | F39: 0 | G39: X | H39: 1 | I39: =VLOOKUP(L39,$B$46:$C$53,2,0) -> LUCIANO-CRF | L39: 4 | M39: 12 | AE39: LUCIANO-CRF | AF39: 0 | AG39: 0 | AH39: ROGÉRIO-APCEF | AK39: 0 | AL39: 0 | AM39: 0 | AN39: 0
B40: 7 | C40: =VLOOKUP(B40,$B$46:$C$53,2,0) -> EDWARD-BQ | F40: 1 | G40: X | H40: 0 | I40: =VLOOKUP(L40,$B$46:$C$53,2,0) -> DANIEL-CRVG | L40: 3 | AE40: EDWARD-BQ | AF40: 0 | AG40: 0 | AH40: DANIEL-CRVG | AK40: 0 | AL40: 0 | AM40: 0 | AN40: 0
AE41: 0 | AF41: 0 | AG41: 0 | AH41: 0 | AK41: 0 | AL41: 0 | AM41: 0 | AN41: 0
AE42: 0 | AF42: 0 | AG42: 0 | AH42: 0 | AK42: 0 | AL42: 0 | AM42: 0 | AN42: 0
AK43: 0 | AL43: 0 | AM43: 0 | AN43: 0
B44: PONTOS
B45: Equipes | F45: PG | G45: J | H45: V | I45: E | J45: D | K45: GP | L45: GC | M45: SG | N45: APROV
A46: 1º | B46: 1 | C46: RICARDO-CRF | F46: =H46*3+I46*1 -> 18 | G46: =SUM(H46:J46) -> 7 | H46: =COUNTIF($AE$7:$AE$40,C46)+COUNTIF($AK$7:$AK$40,C46) -> 6 | I46: =COUNTIF($AF$7:$AG$40,C46)+COUNTIF($AL$7:$AM$37,C46) -> 0 | J46: =COUNTIF($AH$7:$AH$40,C46)+COUNTIF($AN$7:$AN$37,C46) -> 1 | K46: =SUMIF($C$7:$C$40,$C46,$F$7:$F$40)+SUMIF($I$7:$I$40,$C46,$H$7:$H$40)+SUMIF($O$7:$O$40,$C46,$R$7:$R$40)+SUMIF($U$7:$U$40,$C46,$T$7:$T$40) -> 22 | L46: =SUMIF($C$7:$C$40,$C46,$H$7:$H$40)+SUMIF($I$7:$I$40,$C46,$F$7:$F$40)+SUMIF($O$7:$O$40,$C46,$T$7:$T$40)+SUMIF($U$7:$U$40,$C46,$R$7:$R$40) -> 12 | M46: =K46-L46 -> 10 | N46: =F46/(G46*3) -> 86%
A47: 2º | B47: 4 | C47: LUCIANO-CRF | F47: 16 | G47: 7 | H47: 5 | I47: 1 | J47: 1 | K47: 12 | L47: 9 | M47: 3 | N47: 76%
A48: 3º | B48: 2 | C48: LOPES-RIVER | F48: 14 | G48: 7 | H48: 4 | I48: 2 | J48: 1 | K48: 18 | L48: 11 | M48: 7 | N48: 67%
A49: 4º | B49: 7 | C49: EDWARD-BQ | F49: 14 | G49: 7 | H49: 4 | I49: 2 | J49: 1 | K49: 11 | L49: 9 | M49: 2 | N49: 67%
A50: 5º | B50: 6 | C50: ROGÉRIO-APCEF | F50: 10 | G50: 7 | H50: 3 | I50: 1 | J50: 3 | K50: 10 | L50: 10 | M50: 0 | N50: 48%
A51: 6º | B51: 5 | C51: KLAUS-APCEF | F51: 6 | G51: 7 | H51: 2 | I51: 0 | J51: 5 | K51: 10 | L51: 20 | M51: -10 | N51: 29%
A52: 7º | B52: 3 | C52: DANIEL-CRVG | F52: 1 | G52: 7 | H52: 0 | I52: 1 | J52: 6 | K52: 0 | L52: 6 | M52: -6 | N52: 5%
A53: 8º | B53: 8 | C53: VAGO-W.O | F53: 1 | G53: 7 | H53: 0 | I53: 1 | J53: 6 | K53: 0 | L53: 6 | M53: -6 | N53: 5%

Sheet E
AE5: 3 | AF5: 1 | AG5: 1 | AH5: 0 | AK5: 3 | AL5: 1 | AM5: 1 | AN5: 0
B6: 1ª RODADA | M6: MESA | AE6: Vitórias | AF6: Empates | AG6: Empates | AH6: Derrotas | AK6: Vitórias | AL6: Empates | AM6: Empates | AN6: Derrotas
B7: 1 | C7: =VLOOKUP(B7,$B$46:$C$53,2,0) -> RONALD-CRF | F7: 1 | G7: X | H7: 0 | I7: =VLOOKUP(L7,$B$46:$C$53,2,0) -> VAGO-W.O | L7: 8 | M7: 13 | AE7: =IF(F7>H7,C7,IF(F7=H7,0,I7)) -> RONALD-CRF | AF7: =(IF(F7<>"-",(IF(F7=H7,C7,0)),0)) -> 0 | AG7: =(IF(F7<>"-",(IF(F7=H7,I7,0)),0)) -> 0 | AH7: =IF(F7<H7,C7,IF(F7=H7,0,I7)) -> VAGO-W.O | AK7: =IF(R7>T7,O7,IF(R7=T7,0,U7)) -> 0 | AL7: =(IF(R7<>"-",(IF(R7=T7,O7,0)),0)) -> 0 | AM7: =(IF(R7<>"-",(IF(R7=T7,U7,0)),0)) -> 0 | AN7: =IF(R7<T7,O7,IF(R7=T7,0,U7)) -> 0
B8: 2 | C8: =VLOOKUP(B8,$B$46:$C$53,2,0) -> MATOSO-CRVG | F8: 1 | G8: X | H8: 1 | I8: =VLOOKUP(L8,$B$46:$C$53,2,0) -> ARMANDO-PE | L8: 7 | M8: 14 | AE8: =IF(F8>H8,C8,IF(F8=H8,0,I8)) -> 0 | AF8: =(IF(F8<>"-",(IF(F8=H8,C8,0)),0)) -> MATOSO-CRVG | AG8: =(IF(F8<>"-",(IF(F8=H8,I8,0)),0)) -> ARMANDO-PE | AH8: =IF(F8<H8,C8,IF(F8=H8,0,I8)) -> 0 | AK8: =IF(R8>T8,O8,IF(R8=T8,0,U8)) -> 0 | AL8: =(IF(R8<>"-",(IF(R8=T8,O8,0)),0)) -> 0 | AM8: =(IF(R8<>"-",(IF(R8=T8,U8,0)),0)) -> 0 | AN8: =IF(R8<T8,O8,IF(R8=T8,0,U8)) -> 0
B9: 3 | C9: =VLOOKUP(B9,$B$46:$C$53,2,0) -> L.HENRIQUE-TUPI | F9: 3 | G9: X | H9: 2 | I9: =VLOOKUP(L9,$B$46:$C$53,2,0) -> MARCUS-BQ | L9: 6 | M9: 15 | AE9: L.HENRIQUE-TUPI | AF9: 0 | AG9: 0 | AH9: MARCUS-BQ | AK9: 0 | AL9: 0 | AM9: 0 | AN9: 0
B10: 4 | C10: =VLOOKUP(B10,$B$46:$C$53,2,0) -> MENDEZ-CRVG | F10: 3 | G10: X | H10: 2 | I10: =VLOOKUP(L10,$B$46:$C$53,2,0) -> ANDRÉ-BQ | L10: 5 | AE10: MENDEZ-CRVG | AF10: 0 | AG10: 0 | AH10: ANDRÉ-BQ | AK10: 0 | AL10: 0 | AM10: 0 | AN10: 0
B11: 2ª RODADA | M11: MESA | AE11: 0 | AF11: 0 | AG11: 0 | AH11: 0 | AK11: 0 | AL11: 0 | AM11: 0 | AN11: 0
B12: 5 | C12: =VLOOKUP(B12,$B$46:$C$53,2,0) -> ANDRÉ-BQ | F12: 1 | G12: X | H12: 2 | I12: =VLOOKUP(L12,$B$46:$C$53,2,0) -> L.HENRIQUE-TUPI | L12: 3 | M12: 13 | AE12: L.HENRIQUE-TUPI | AF12: 0 | AG12: 0 | AH12: ANDRÉ-BQ | AK12: 0 | AL12: 0 | AM12: 0 | AN12: 0
B13: 6 | C13: =VLOOKUP(B13,$B$46:$C$53,2,0) -> MARCUS-BQ | F13: 2 | G13: X | H13: 3 | I13: =VLOOKUP(L13,$B$46:$C$53,2,0) -> MATOSO-CRVG | L13: 2 | M13: 14 | AE13: MATOSO-CRVG | AF13: 0 | AG13: 0 | AH13: MARCUS-BQ | AK13: 0 | AL13: 0 | AM13: 0 | AN13: 0
B14: 7 | C14: =VLOOKUP(B14,$B$46:$C$53,2,0) -> ARMANDO-PE | F14: 0 | G14: X | H14: 2 | I14: =VLOOKUP(L14,$B$46:$C$53,2,0) -> RONALD-CRF | L14: 1 | M14: 15 | AE14: RONALD-CRF | AF14: 0 | AG14: 0 | AH14: ARMANDO-PE | AK14: 0 | AL14: 0 | AM14: 0 | AN14: 0
B15: 8 | C15: =VLOOKUP(B15,$B$46:$C$53,2,0) -> VAGO-W.O | F15: 0 | G15: X | H15: 1 | I15: =VLOOKUP(L15,$B$46:$C$53,2,0) -> MENDEZ-CRVG | L15: 4 | AE15: MENDEZ-CRVG | AF15: 0 | AG15: 0 | AH15: VAGO-W.O | AK15: 0 | AL15: 0 | AM15: 0 | AN15: 0
B16: 3ª RODADA | M16: MESA | AE16: 0 | AF16: 0 | AG16: 0 | AH16: 0 | AK16: 0 | AL16: 0 | AM16: 0 | AN16: 0
B17: 1 | C17: =VLOOKUP(B17,$B$46:$C$53,2,0) -> RONALD-CRF | F17: 3 | G17: X | H17: 3 | I17: =VLOOKUP(L17,$B$46:$C$53,2,0) -> MARCUS-BQ | L17: 6 | M17: 13 | AE17: 0 | AF17: RONALD-CRF | AG17: MARCUS-BQ | AH17: 0 | AK17: 0 | AL17: 0 | AM17: 0 | AN17: 0
B18: 2 | C18: =VLOOKUP(B18,$B$46:$C$53,2,0) -> MATOSO-CRVG | F18: 0 | G18: X | H18: 0 | I18: =VLOOKUP(L18,$B$46:$C$53,2,0) -> ANDRÉ-BQ | L18: 5 | M18: 14 | AE18: 0 | AF18: MATOSO-CRVG | AG18: ANDRÉ-BQ | AH18: 0 | AK18: 0 | AL18: 0 | AM18: 0 | AN18: 0
B19: 3 | C19: =VLOOKUP(B19,$B$46:$C$53,2,0) -> L.HENRIQUE-TUPI | F19: 3 | G19: X | H19: 3 | I19: =VLOOKUP(L19,$B$46:$C$53,2,0) -> MENDEZ-CRVG | L19: 4 | M19: 15 | AE19: 0 | AF19: L.HENRIQUE-TUPI | AG19: MENDEZ-CRVG | AH19: 0 | AK19: 0 | AL19: 0 | AM19: 0 | AN19: 0
B20: 7 | C20: =VLOOKUP(B20,$B$46:$C$53,2,0) -> ARMANDO-PE | F20: 1 | G20: X | H20: 0 | I20: =VLOOKUP(L20,$B$46:$C$53,2,0) -> VAGO-W.O | L20: 8 | AE20: ARMANDO-PE | AF20: 0 | AG20: 0 | AH20: VAGO-W.O | AK20: 0 | AL20: 0 | AM20: 0 | AN20: 0
B21: 4ª RODADA | M21: MESA | AE21: 0 | AF21: 0 | AG21: 0 | AH21: 0 | AK21: 0 | AL21: 0 | AM21: 0 | AN21: 0
B22: 3 | C22: =VLOOKUP(B22,$B$46:$C$53,2,0) -> L.HENRIQUE-TUPI | F22: 1 | G22: X | H22: 0 | I22: =VLOOKUP(L22,$B$46:$C$53,2,0) -> VAGO-W.O | L22: 8 | M22: 13 | AE22: L.HENRIQUE-TUPI | AF22: 0 | AG22: 0 | AH22: VAGO-W.O | AK22: 0 | AL22: 0 | AM22: 0 | AN22: 0
B23: 4 | C23: =VLOOKUP(B23,$B$46:$C$53,2,0) -> MENDEZ-CRVG | F23: 2 | G23: X | H23: 2 | I23: =VLOOKUP(L23,$B$46:$C$53,2,0) -> MATOSO-CRVG | L23: 2 | M23: 14 | AE23: 0 | AF23: MENDEZ-CRVG | AG23: MATOSO-CRVG | AH23: 0 | AK23: 0 | AL23: 0 | AM23: 0 | AN23: 0
B24: 5 | C24: =VLOOKUP(B24,$B$46:$C$53,2,0) -> ANDRÉ-BQ | F24: 1 | G24: X | H24: 5 | I24: =VLOOKUP(L24,$B$46:$C$53,2,0) -> RONALD-CRF | L24: 1 | M24: 15 | AE24: RONALD-CRF | AF24: 0 | AG24: 0 | AH24: ANDRÉ-BQ | AK24: 0 | AL24: 0 | AM24: 0 | AN24: 0
B25: 6 | C25: =VLOOKUP(B25,$B$46:$C$53,2,0) -> MARCUS-BQ | F25: 2 | G25: X | H25: 1 | I25: =VLOOKUP(L25,$B$46:$C$53,2,0) -> ARMANDO-PE | L25: 7 | AE25: MARCUS-BQ | AF25: 0 | AG25: 0 | AH25: ARMANDO-PE | AK25: 0 | AL25: 0 | AM25: 0 | AN25: 0
B26: 5ª RODADA | M26: MESA | AE26: 0 | AF26: 0 | AG26: 0 | AH26: 0 | AK26: 0 | AL26: 0 | AM26: 0 | AN26: 0
B27: 1 | C27: =VLOOKUP(B27,$B$46:$C$53,2,0) -> RONALD-CRF | F27: 5 | G27: X | H27: 2 | I27: =VLOOKUP(L27,$B$46:$C$53,2,0) -> MENDEZ-CRVG | L27: 4 | M27: 13 | AE27: RONALD-CRF | AF27: 0 | AG27: 0 | AH27: MENDEZ-CRVG | AK27: 0 | AL27: 0 | AM27: 0 | AN27: 0
B28: 2 | C28: =VLOOKUP(B28,$B$46:$C$53,2,0) -> MATOSO-CRVG | F28: 0 | G28: X | H28: 2 | I28: =VLOOKUP(L28,$B$46:$C$53,2,0) -> L.HENRIQUE-TUPI | L28: 3 | M28: 14 | AE28: L.HENRIQUE-TUPI | AF28: 0 | AG28: 0 | AH28: MATOSO-CRVG | AK28: 0 | AL28: 0 | AM28: 0 | AN28: 0
B29: 7 | C29: =VLOOKUP(B29,$B$46:$C$53,2,0) -> ARMANDO-PE | F29: 0 | G29: X | H29: 0 | I29: =VLOOKUP(L29,$B$46:$C$53,2,0) -> ANDRÉ-BQ | L29: 5 | M29: 15 | AE29: 0 | AF29: ARMANDO-PE | AG29: ANDRÉ-BQ | AH29: 0 | AK29: 0 | AL29: 0 | AM29: 0 | AN29: 0
B30: 8 | C30: =VLOOKUP(B30,$B$46:$C$53,2,0) -> VAGO-W.O | F30: 0 | G30: X | H30: 1 | I30: =VLOOKUP(L30,$B$46:$C$53,2,0) -> MARCUS-BQ | L30: 6 | AE30: MARCUS-BQ | AF30: 0 | AG30: 0 | AH30: VAGO-W.O | AK30: 0 | AL30: 0 | AM30: 0 | AN30: 0
B31: 6ª RODADA | M31: MESA | AE31: 0 | AF31: 0 | AG31: 0 | AH31: 0 | AK31: 0 | AL31: 0 | AM31: 0 | AN31: 0
B32: 3 | C32: =VLOOKUP(B32,$B$46:$C$53,2,0) -> L.HENRIQUE-TUPI | F32: 5 | G32: X | H32: 6 | I32: =VLOOKUP(L32,$B$46:$C$53,2,0) -> RONALD-CRF | L32: 1 | M32: 13 | AE32: RONALD-CRF | AF32: 0 | AG32: 0 | AH32: L.HENRIQUE-TUPI | AK32: 0 | AL32: 0 | AM32: 0 | AN32: 0
B33: 4 | C33: =VLOOKUP(B33,$B$46:$C$53,2,0) -> MENDEZ-CRVG | F33: 1 | G33: X | H33: 0 | I33: =VLOOKUP(L33,$B$46:$C$53,2,0) -> ARMANDO-PE | L33: 7 | M33: 14 | AE33: MENDEZ-CRVG | AF33: 0 | AG33: 0 | AH33: ARMANDO-PE | AK33: 0 | AL33: 0 | AM33: 0 | AN33: 0
B34: 5 | C34: =VLOOKUP(B34,$B$46:$C$53,2,0) -> ANDRÉ-BQ | F34: 0 | G34: X | H34: 2 | I34: =VLOOKUP(L34,$B$46:$C$53,2,0) -> MARCUS-BQ | L34: 6 | M34: 15 | AE34: MARCUS-BQ | AF34: 0 | AG34: 0 | AH34: ANDRÉ-BQ | AK34: 0 | AL34: 0 | AM34: 0 | AN34: 0
B35: 8 | C35: =VLOOKUP(B35,$B$46:$C$53,2,0) -> VAGO-W.O | F35: 0 | G35: X | H35: 1 | I35: =VLOOKUP(L35,$B$46:$C$53,2,0) -> MATOSO-CRVG | L35: 2 | AE35: MATOSO-CRVG | AF35: 0 | AG35: 0 | AH35: VAGO-W.O | AK35: 0 | AL35: 0 | AM35: 0 | AN35: 0
B36: 7ª RODADA | M36: MESA | AE36: 0 | AF36: 0 | AG36: 0 | AH36: 0 | AK36: 0 | AL36: 0 | AM36: 0 | AN36: 0
B37: 1 | C37: =VLOOKUP(B37,$B$46:$C$53,2,0) -> RONALD-CRF | F37: 5 | G37: X | H37: 3 | I37: =VLOOKUP(L37,$B$46:$C$53,2,0) -> MATOSO-CRVG | L37: 2 | M37: 13 | AE37: RONALD-CRF | AF37: 0 | AG37: 0 | AH37: MATOSO-CRVG | AK37: 0 | AL37: 0 | AM37: 0 | AN37: 0
B38: 5 | C38: =VLOOKUP(B38,$B$46:$C$53,2,0) -> ANDRÉ-BQ | F38: 1 | G38: X | H38: 0 | I38: =VLOOKUP(L38,$B$46:$C$53,2,0) -> VAGO-W.O | L38: 8 | M38: 14 | AE38: ANDRÉ-BQ | AF38: 0 | AG38: 0 | AH38: VAGO-W.O | AK38: 0 | AL38: 0 | AM38: 0 | AN38: 0
B39: 6 | C39: =VLOOKUP(B39,$B$46:$C$53,2,0) -> MARCUS-BQ | F39: 2 | G39: X | H39: 1 | I39: =VLOOKUP(L39,$B$46:$C$53,2,0) -> MENDEZ-CRVG | L39: 4 | M39: 15 | AE39: MARCUS-BQ | AF39: 0 | AG39: 0 | AH39: MENDEZ-CRVG | AK39: 0 | AL39: 0 | AM39: 0 | AN39: 0
B40: 7 | C40: =VLOOKUP(B40,$B$46:$C$53,2,0) -> ARMANDO-PE | F40: 2 | G40: X | H40: 2 | I40: =VLOOKUP(L40,$B$46:$C$53,2,0) -> L.HENRIQUE-TUPI | L40: 3 | AE40: 0 | AF40: ARMANDO-PE | AG40: L.HENRIQUE-TUPI | AH40: 0 | AK40: 0 | AL40: 0 | AM40: 0 | AN40: 0
AE41: 0 | AF41: 0 | AG41: 0 | AH41: 0 | AK41: 0 | AL41: 0 | AM41: 0 | AN41: 0
AE42: 0 | AF42: 0 | AG42: 0 | AH42: 0 | AK42: 0 | AL42: 0 | AM42: 0 | AN42: 0
AK43: 0 | AL43: 0 | AM43: 0 | AN43: 0
B44: PONTOS
B45: Equipes | F45: PG | G45: J | H45: V | I45: E | J45: D | K45: GP | L45: GC | M45: SG | N45: APROV
A46: 1º | B46: 1 | C46: RONALD-CRF | F46: =H46*3+I46*1 -> 19 | G46: =SUM(H46:J46) -> 7 | H46: =COUNTIF($AE$7:$AE$40,C46)+COUNTIF($AK$7:$AK$40,C46) -> 6 | I46: =COUNTIF($AF$7:$AG$40,C46)+COUNTIF($AL$7:$AM$37,C46) -> 1 | J46: =COUNTIF($AH$7:$AH$40,C46)+COUNTIF($AN$7:$AN$37,C46) -> 0 | K46: =SUMIF($C$7:$C$40,$C46,$F$7:$F$40)+SUMIF($I$7:$I$40,$C46,$H$7:$H$40)+SUMIF($O$7:$O$40,$C46,$R$7:$R$40)+SUMIF($U$7:$U$40,$C46,$T$7:$T$40) -> 27 | L46: =SUMIF($C$7:$C$40,$C46,$H$7:$H$40)+SUMIF($I$7:$I$40,$C46,$F$7:$F$40)+SUMIF($O$7:$O$40,$C46,$T$7:$T$40)+SUMIF($U$7:$U$40,$C46,$R$7:$R$40) -> 14 | M46: =K46-L46 -> 13 | N46: =F46/(G46*3) -> 90%
A47: 2º | B47: 3 | C47: L.HENRIQUE-TUPI | F47: 14 | G47: 7 | H47: 4 | I47: 2 | J47: 1 | K47: 18 | L47: 14 | M47: 4 | N47: 67%
A48: 3º | B48: 6 | C48: MARCUS-BQ | F48: 13 | G48: 7 | H48: 4 | I48: 1 | J48: 2 | K48: 14 | L48: 11 | M48: 3 | N48: 62%
A49: 4º | B49: 4 | C49: MENDEZ-CRVG | F49: 11 | G49: 7 | H49: 3 | I49: 2 | J49: 2 | K49: 13 | L49: 14 | M49: -1 | N49: 52%
A50: 5º | B50: 2 | C50: MATOSO-CRVG | F50: 9 | G50: 7 | H50: 2 | I50: 3 | J50: 2 | K50: 10 | L50: 12 | M50: -2 | N50: 43%
A51: 6º | B51: 7 | C51: ARMANDO-PE | F51: 6 | G51: 7 | H51: 1 | I51: 3 | J51: 3 | K51: 5 | L51: 8 | M51: -3 | N51: 29%
A52: 7º | B52: 5 | C52: ANDRÉ-BQ | F52: 5 | G52: 7 | H52: 1 | I52: 2 | J52: 4 | K52: 5 | L52: 12 | M52: -7 | N52: 24%
A53: 8º | B53: 8 | C53: VAGO-W.O | F53: 0 | G53: 7 | H53: 0 | I53: 0 | J53: 7 | K53: 0 | L53: 7 | M53: -7 | N53: 0%

Sheet F
AE5: 3 | AF5: 1 | AG5: 1 | AH5: 0 | AK5: 3 | AL5: 1 | AM5: 1 | AN5: 0
B6: 1ª RODADA | M6: MESA | AE6: Vitórias | AF6: Empates | AG6: Empates | AH6: Derrotas | AK6: Vitórias | AL6: Empates | AM6: Empates | AN6: Derrotas
B7: 1 | C7: =VLOOKUP(B7,$B$46:$C$53,2,0) -> GATTO-CRVG | F7: 1 | G7: X | H7: 0 | I7: =VLOOKUP(L7,$B$46:$C$53,2,0) -> VAGO-W.O | L7: 8 | M7: 16 | AE7: =IF(F7>H7,C7,IF(F7=H7,0,I7)) -> GATTO-CRVG | AF7: =(IF(F7<>"-",(IF(F7=H7,C7,0)),0)) -> 0 | AG7: =(IF(F7<>"-",(IF(F7=H7,I7,0)),0)) -> 0 | AH7: =IF(F7<H7,C7,IF(F7=H7,0,I7)) -> VAGO-W.O | AK7: =IF(R7>T7,O7,IF(R7=T7,0,U7)) -> 0 | AL7: =(IF(R7<>"-",(IF(R7=T7,O7,0)),0)) -> 0 | AM7: =(IF(R7<>"-",(IF(R7=T7,U7,0)),0)) -> 0 | AN7: =IF(R7<T7,O7,IF(R7=T7,0,U7)) -> 0
B8: 2 | C8: =VLOOKUP(B8,$B$46:$C$53,2,0) -> VERAS-CRF | F8: 4 | G8: X | H8: 3 | I8: =VLOOKUP(L8,$B$46:$C$53,2,0) -> BELMIRO-RIVER | L8: 7 | M8: 17 | AE8: =IF(F8>H8,C8,IF(F8=H8,0,I8)) -> VERAS-CRF | AF8: =(IF(F8<>"-",(IF(F8=H8,C8,0)),0)) -> 0 | AG8: =(IF(F8<>"-",(IF(F8=H8,I8,0)),0)) -> 0 | AH8: =IF(F8<H8,C8,IF(F8=H8,0,I8)) -> BELMIRO-RIVER | AK8: =IF(R8>T8,O8,IF(R8=T8,0,U8)) -> 0 | AL8: =(IF(R8<>"-",(IF(R8=T8,O8,0)),0)) -> 0 | AM8: =(IF(R8<>"-",(IF(R8=T8,U8,0)),0)) -> 0 | AN8: =IF(R8<T8,O8,IF(R8=T8,0,U8)) -> 0
B9: 3 | C9: =VLOOKUP(B9,$B$46:$C$53,2,0) -> AIRES-ASBAC | F9: 1 | G9: X | H9: 1 | I9: =VLOOKUP(L9,$B$46:$C$53,2,0) -> FERNANDO-BOT-DF | L9: 6 | M9: 18 | AE9: 0 | AF9: AIRES-ASBAC | AG9: FERNANDO-BOT-DF | AH9: 0 | AK9: 0 | AL9: 0 | AM9: 0 | AN9: 0
B10: 4 | C10: =VLOOKUP(B10,$B$46:$C$53,2,0) -> ZÉ LUIZ-CRF | F10: 1 | G10: X | H10: 1 | I10: =VLOOKUP(L10,$B$46:$C$53,2,0) -> KADHU-CRVG | L10: 5 | AE10: 0 | AF10: ZÉ LUIZ-CRF | AG10: KADHU-CRVG | AH10: 0 | AK10: 0 | AL10: 0 | AM10: 0 | AN10: 0
B11: 2ª RODADA | M11: MESA | AE11: 0 | AF11: 0 | AG11: 0 | AH11: 0 | AK11: 0 | AL11: 0 | AM11: 0 | AN11: 0
B12: 5 | C12: =VLOOKUP(B12,$B$46:$C$53,2,0) -> KADHU-CRVG | F12: 2 | G12: X | H12: 4 | I12: =VLOOKUP(L12,$B$46:$C$53,2,0) -> AIRES-ASBAC | L12: 3 | M12: 16 | AE12: AIRES-ASBAC | AF12: 0 | AG12: 0 | AH12: KADHU-CRVG | AK12: 0 | AL12: 0 | AM12: 0 | AN12: 0
B13: 6 | C13: =VLOOKUP(B13,$B$46:$C$53,2,0) -> FERNANDO-BOT-DF | F13: 3 | G13: X | H13: 1 | I13: =VLOOKUP(L13,$B$46:$C$53,2,0) -> VERAS-CRF | L13: 2 | M13: 17 | AE13: FERNANDO-BOT-DF | AF13: 0 | AG13: 0 | AH13: VERAS-CRF | AK13: 0 | AL13: 0 | AM13: 0 | AN13: 0
B14: 7 | C14: =VLOOKUP(B14,$B$46:$C$53,2,0) -> BELMIRO-RIVER | F14: 0 | G14: X | H14: 4 | I14: =VLOOKUP(L14,$B$46:$C$53,2,0) -> GATTO-CRVG | L14: 1 | M14: 18 | AE14: GATTO-CRVG | AF14: 0 | AG14: 0 | AH14: BELMIRO-RIVER | AK14: 0 | AL14: 0 | AM14: 0 | AN14: 0
B15: 8 | C15: =VLOOKUP(B15,$B$46:$C$53,2,0) -> VAGO-W.O | F15: 0 | G15: X | H15: 1 | I15: =VLOOKUP(L15,$B$46:$C$53,2,0) -> ZÉ LUIZ-CRF | L15: 4 | AE15: ZÉ LUIZ-CRF | AF15: 0 | AG15: 0 | AH15: VAGO-W.O | AK15: 0 | AL15: 0 | AM15: 0 | AN15: 0
B16: 3ª RODADA | M16: MESA | AE16: 0 | AF16: 0 | AG16: 0 | AH16: 0 | AK16: 0 | AL16: 0 | AM16: 0 | AN16: 0
B17: 1 | C17: =VLOOKUP(B17,$B$46:$C$53,2,0) -> GATTO-CRVG | F17: 2 | G17: X | H17: 4 | I17: =VLOOKUP(L17,$B$46:$C$53,2,0) -> FERNANDO-BOT-DF | L17: 6 | M17: 16 | AE17: FERNANDO-BOT-DF | AF17: 0 | AG17: 0 | AH17: GATTO-CRVG | AK17: 0 | AL17: 0 | AM17: 0 | AN17: 0
B18: 2 | C18: =VLOOKUP(B18,$B$46:$C$53,2,0) -> VERAS-CRF | F18: 4 | G18: X | H18: 1 | I18: =VLOOKUP(L18,$B$46:$C$53,2,0) -> KADHU-CRVG | L18: 5 | M18: 17 | AE18: VERAS-CRF | AF18: 0 | AG18: 0 | AH18: KADHU-CRVG | AK18: 0 | AL18: 0 | AM18: 0 | AN18: 0
B19: 3 | C19: =VLOOKUP(B19,$B$46:$C$53,2,0) -> AIRES-ASBAC | F19: 3 | G19: X | H19: 0 | I19: =VLOOKUP(L19,$B$46:$C$53,2,0) -> ZÉ LUIZ-CRF | L19: 4 | M19: 18 | AE19: AIRES-ASBAC | AF19: 0 | AG19: 0 | AH19: ZÉ LUIZ-CRF | AK19: 0 | AL19: 0 | AM19: 0 | AN19: 0
B20: 7 | C20: =VLOOKUP(B20,$B$46:$C$53,2,0) -> BELMIRO-RIVER | F20: 1 | G20: X | H20: 0 | I20: =VLOOKUP(L20,$B$46:$C$53,2,0) -> VAGO-W.O | L20: 8 | AE20: BELMIRO-RIVER | AF20: 0 | AG20: 0 | AH20: VAGO-W.O | AK20: 0 | AL20: 0 | AM20: 0 | AN20: 0
B21: 4ª RODADA | M21: MESA | AE21: 0 | AF21: 0 | AG21: 0 | AH21: 0 | AK21: 0 | AL21: 0 | AM21: 0 | AN21: 0
B22: 3 | C22: =VLOOKUP(B22,$B$46:$C$53,2,0) -> AIRES-ASBAC | F22: 1 | G22: X | H22: 0 | I22: =VLOOKUP(L22,$B$46:$C$53,2,0) -> VAGO-W.O | L22: 8 | M22: 16 | AE22: AIRES-ASBAC | AF22: 0 | AG22: 0 | AH22: VAGO-W.O | AK22: 0 | AL22: 0 | AM22: 0 | AN22: 0
B23: 4 | C23: =VLOOKUP(B23,$B$46:$C$53,2,0) -> ZÉ LUIZ-CRF | F23: 1 | G23: X | H23: 3 | I23: =VLOOKUP(L23,$B$46:$C$53,2,0) -> VERAS-CRF | L23: 2 | M23: 17 | AE23: VERAS-CRF | AF23: 0 | AG23: 0 | AH23: ZÉ LUIZ-CRF | AK23: 0 | AL23: 0 | AM23: 0 | AN23: 0
B24: 5 | C24: =VLOOKUP(B24,$B$46:$C$53,2,0) -> KADHU-CRVG | F24: 4 | G24: X | H24: 6 | I24: =VLOOKUP(L24,$B$46:$C$53,2,0) -> GATTO-CRVG | L24: 1 | M24: 18 | AE24: GATTO-CRVG | AF24: 0 | AG24: 0 | AH24: KADHU-CRVG | AK24: 0 | AL24: 0 | AM24: 0 | AN24: 0
B25: 6 | C25: =VLOOKUP(B25,$B$46:$C$53,2,0) -> FERNANDO-BOT-DF | F25: 3 | G25: X | H25: 1 | I25: =VLOOKUP(L25,$B$46:$C$53,2,0) -> BELMIRO-RIVER | L25: 7 | AE25: FERNANDO-BOT-DF | AF25: 0 | AG25: 0 | AH25: BELMIRO-RIVER | AK25: 0 | AL25: 0 | AM25: 0 | AN25: 0
B26: 5ª RODADA | M26: MESA | AE26: 0 | AF26: 0 | AG26: 0 | AH26: 0 | AK26: 0 | AL26: 0 | AM26: 0 | AN26: 0
B27: 1 | C27: =VLOOKUP(B27,$B$46:$C$53,2,0) -> GATTO-CRVG | F27: 2 | G27: X | H27: 4 | I27: =VLOOKUP(L27,$B$46:$C$53,2,0) -> ZÉ LUIZ-CRF | L27: 4 | M27: 16 | AE27: ZÉ LUIZ-CRF | AF27: 0 | AG27: 0 | AH27: GATTO-CRVG | AK27: 0 | AL27: 0 | AM27: 0 | AN27: 0
B28: 2 | C28: =VLOOKUP(B28,$B$46:$C$53,2,0) -> VERAS-CRF | F28: 3 | G28: X | H28: 4 | I28: =VLOOKUP(L28,$B$46:$C$53,2,0) -> AIRES-ASBAC | L28: 3 | M28: 17 | AE28: AIRES-ASBAC | AF28: 0 | AG28: 0 | AH28: VERAS-CRF | AK28: 0 | AL28: 0 | AM28: 0 | AN28: 0
B29: 7 | C29: =VLOOKUP(B29,$B$46:$C$53,2,0) -> BELMIRO-RIVER | F29: 2 | G29: X | H29: 3 | I29: =VLOOKUP(L29,$B$46:$C$53,2,0) -> KADHU-CRVG | L29: 5 | M29: 18 | AE29: KADHU-CRVG | AF29: 0 | AG29: 0 | AH29: BELMIRO-RIVER | AK29: 0 | AL29: 0 | AM29: 0 | AN29: 0
B30: 8 | C30: =VLOOKUP(B30,$B$46:$C$53,2,0) -> VAGO-W.O | F30: 0 | G30: X | H30: 1 | I30: =VLOOKUP(L30,$B$46:$C$53,2,0) -> FERNANDO-BOT-DF | L30: 6 | AE30: FERNANDO-BOT-DF | AF30: 0 | AG30: 0 | AH30: VAGO-W.O | AK30: 0 | AL30: 0 | AM30: 0 | AN30: 0
B31: 6ª RODADA | M31: MESA | AE31: 0 | AF31: 0 | AG31: 0 | AH31: 0 | AK31: 0 | AL31: 0 | AM31: 0 | AN31: 0
B32: 3 | C32: =VLOOKUP(B32,$B$46:$C$53,2,0) -> AIRES-ASBAC | F32: 2 | G32: X | H32: 2 | I32: =VLOOKUP(L32,$B$46:$C$53,2,0) -> GATTO-CRVG | L32: 1 | M32: 16 | AE32: 0 | AF32: AIRES-ASBAC | AG32: GATTO-CRVG | AH32: 0 | AK32: 0 | AL32: 0 | AM32: 0 | AN32: 0
B33: 4 | C33: =VLOOKUP(B33,$B$46:$C$53,2,0) -> ZÉ LUIZ-CRF | F33: 2 | G33: X | H33: 1 | I33: =VLOOKUP(L33,$B$46:$C$53,2,0) -> BELMIRO-RIVER | L33: 7 | M33: 17 | AE33: ZÉ LUIZ-CRF | AF33: 0 | AG33: 0 | AH33: BELMIRO-RIVER | AK33: 0 | AL33: 0 | AM33: 0 | AN33: 0
B34: 5 | C34: =VLOOKUP(B34,$B$46:$C$53,2,0) -> KADHU-CRVG | F34: 1 | G34: X | H34: 4 | I34: =VLOOKUP(L34,$B$46:$C$53,2,0) -> FERNANDO-BOT-DF | L34: 6 | M34: 18 | AE34: FERNANDO-BOT-DF | AF34: 0 | AG34: 0 | AH34: KADHU-CRVG | AK34: 0 | AL34: 0 | AM34: 0 | AN34: 0
B35: 8 | C35: =VLOOKUP(B35,$B$46:$C$53,2,0) -> VAGO-W.O | F35: 0 | G35: X | H35: 1 | I35: =VLOOKUP(L35,$B$46:$C$53,2,0) -> VERAS-CRF | L35: 2 | AE35: VERAS-CRF | AF35: 0 | AG35: 0 | AH35: VAGO-W.O | AK35: 0 | AL35: 0 | AM35: 0 | AN35: 0
B36: 7ª RODADA | M36: MESA | AE36: 0 | AF36: 0 | AG36: 0 | AH36: 0 | AK36: 0 | AL36: 0 | AM36: 0 | AN36: 0
B37: 1 | C37: =VLOOKUP(B37,$B$46:$C$53,2,0) -> GATTO-CRVG | F37: 5 | G37: X | H37: 3 | I37: =VLOOKUP(L37,$B$46:$C$53,2,0) -> VERAS-CRF | L37: 2 | M37: 16 | AE37: GATTO-CRVG | AF37: 0 | AG37: 0 | AH37: VERAS-CRF | AK37: 0 | AL37: 0 | AM37: 0 | AN37: 0
B38: 5 | C38: =VLOOKUP(B38,$B$46:$C$53,2,0) -> KADHU-CRVG | F38: 1 | G38: X | H38: 0 | I38: =VLOOKUP(L38,$B$46:$C$53,2,0) -> VAGO-W.O | L38: 8 | M38: 17 | AE38: KADHU-CRVG | AF38: 0 | AG38: 0 | AH38: VAGO-W.O | AK38: 0 | AL38: 0 | AM38: 0 | AN38: 0
B39: 6 | C39: =VLOOKUP(B39,$B$46:$C$53,2,0) -> FERNANDO-BOT-DF | F39: 4 | G39: X | H39: 2 | I39: =VLOOKUP(L39,$B$46:$C$53,2,0) -> ZÉ LUIZ-CRF | L39: 4 | M39: 18 | AE39: FERNANDO-BOT-DF | AF39: 0 | AG39: 0 | AH39: ZÉ LUIZ-CRF | AK39: 0 | AL39: 0 | AM39: 0 | AN39: 0
B40: 7 | C40: =VLOOKUP(B40,$B$46:$C$53,2,0) -> BELMIRO-RIVER | F40: 2 | G40: X | H40: 4 | I40: =VLOOKUP(L40,$B$46:$C$53,2,0) -> AIRES-ASBAC | L40: 3 | AE40: AIRES-ASBAC | AF40: 0 | AG40: 0 | AH40: BELMIRO-RIVER | AK40: 0 | AL40: 0 | AM40: 0 | AN40: 0
AE41: 0 | AF41: 0 | AG41: 0 | AH41: 0 | AK41: 0 | AL41: 0 | AM41: 0 | AN41: 0
AE42: 0 | AF42: 0 | AG42: 0 | AH42: 0 | AK42: 0 | AL42: 0 | AM42: 0 | AN42: 0
AK43: 0 | AL43: 0 | AM43: 0 | AN43: 0
B44: PONTOS
B45: Equipes | F45: PG | G45: J | H45: V | I45: E | J45: D | K45: GP | L45: GC | M45: SG | N45: APROV
A46: 1º | B46: 6 | C46: FERNANDO-BOT-DF | F46: =H46*3+I46*1 -> 19 | G46: =SUM(H46:J46) -> 7 | H46: =COUNTIF($AE$7:$AE$40,C46)+COUNTIF($AK$7:$AK$40,C46) -> 6 | I46: =COUNTIF($AF$7:$AG$40,C46)+COUNTIF($AL$7:$AM$37,C46) -> 1 | J46: =COUNTIF($AH$7:$AH$40,C46)+COUNTIF($AN$7:$AN$37,C46) -> 0 | K46: =SUMIF($C$7:$C$40,$C46,$F$7:$F$40)+SUMIF($I$7:$I$40,$C46,$H$7:$H$40)+SUMIF($O$7:$O$40,$C46,$R$7:$R$40)+SUMIF($U$7:$U$40,$C46,$T$7:$T$40) -> 20 | L46: =SUMIF($C$7:$C$40,$C46,$H$7:$H$40)+SUMIF($I$7:$I$40,$C46,$F$7:$F$40)+SUMIF($O$7:$O$40,$C46,$T$7:$T$40)+SUMIF($U$7:$U$40,$C46,$R$7:$R$40) -> 8 | M46: =K46-L46 -> 12 | N46: =F46/(G46*3) -> 90%
A47: 2º | B47: 3 | C47: AIRES-ASBAC | F47: 17 | G47: 7 | H47: 5 | I47: 2 | J47: 0 | K47: 19 | L47: 10 | M47: 9 | N47: 81%
A48: 3º | B48: 1 | C48: GATTO-CRVG | F48: 13 | G48: 7 | H48: 4 | I48: 1 | J48: 2 | K48: 22 | L48: 17 | M48: 5 | N48: 0.619
A49: 4º | B49: 2 | C49: VERAS-CRF | F49: 12 | G49: 7 | H49: 4 | I49: 0 | J49: 3 | K49: 19 | L49: 17 | M49: 2 | N49: 57%
A50: 5º | B50: 4 | C50: ZÉ LUIZ-CRF | F50: 10 | G50: 7 | H50: 3 | I50: 1 | J50: 3 | K50: 11 | L50: 14 | M50: -3 | N50: 48%
A51: 6º | B51: 5 | C51: KADHU-CRVG | F51: 7 | G51: 7 | H51: 2 | I51: 1 | J51: 4 | K51: 13 | L51: 21 | M51: -8 | N51: 33%
A52: 7º | B52: 7 | C52: BELMIRO-RIVER | F52: 3 | G52: 7 | H52: 1 | I52: 0 | J52: 6 | K52: 10 | L52: 20 | M52: -10 | N52: 14%
A53: 8º | B53: 8 | C53: VAGO-W.O | F53: 0 | G53: 7 | H53: 0 | I53: 0 | J53: 7 | K53: 0 | L53: 7 | M53: -7 | N53: 0%

Sheet Resumo
C1: GRUPO A
C2: Equipes | G2: PG | H2: J | I2: V | J2: E | K2: D | L2: GP | M2: GC | N2: SG | O2: APROV
B3: 1º | C3: 1 | D3: =A!$C$46 -> AUGUSTO-CRF | G3: =A!$F$46 -> 17 | H3: =A!$G$46 -> 7 | I3: =A!$H$46 -> 5 | J3: =A!$I$46 -> 2 | K3: =A!$J$46 -> 0 | L3: =A!$K$46 -> 18 | M3: =A!$L$46 -> 11 | N3: =A!$M$46 -> 7 | O3: =A!N46 -> 0.810
B4: 2º | C4: 2 | D4: =A!$C$47 -> WELLINGTON-ADDP | G4: =A!$F$47 -> 16 | H4: =A!$G$47 -> 7 | I4: =A!$H$47 -> 5 | J4: =A!$I$47 -> 1 | K4: =A!$J$47 -> 1 | L4: =A!$K$47 -> 15 | M4: =A!$L$47 -> 10 | N4: =A!$M$47 -> 5 | O4: =A!N47 -> 0.762
B5: 3º | C5: 3 | D5: =A!$C$48 -> B. RAFAEL-SANTOS | G5: =A!$F$48 -> 15 | H5: =A!$G$48 -> 7 | I5: =A!$H$48 -> 5 | J5: =A!$I$48 -> 0 | K5: =A!$J$48 -> 2 | L5: =A!$K$48 -> 15 | M5: =A!$L$48 -> 12 | N5: =A!$M$48 -> 3 | O5: =A!N48 -> 0.714
B6: 4º | C6: 4 | D6: =A!$C$49 -> PAULINHO-BOT-DF | G6: =A!$F$49 -> 13 | H6: =A!$G$49 -> 7 | I6: =A!$H$49 -> 4 | J6: =A!$I$49 -> 1 | K6: =A!$J$49 -> 2 | L6: =A!$K$49 -> 12 | M6: =A!$L$49 -> 10 | N6: =A!$M$49 -> 2 | O6: =A!N49 -> 0.619
B7: 5º | C7: 5 | D7: =A!$C$50 -> B.MACHADO-BQ | G7: =A!$F$50 -> 10 | H7: =A!$G$50 -> 7 | I7: =A!$H$50 -> 3 | J7: =A!$I$50 -> 1 | K7: =A!$J$50 -> 3 | L7: =A!$K$50 -> 13 | M7: =A!$L$50 -> 11 | N7: =A!$M$50 -> 2 | O7: =A!N50 -> 0.476
B8: 6º | C8: 6 | D8: =A!$C$51 -> LIBÓRIO-FFC | G8: =A!$F$51 -> 7 | H8: =A!$G$51 -> 7 | I8: =A!$H$51 -> 2 | J8: =A!$I$51 -> 1 | K8: =A!$J$51 -> 4 | L8: =A!$K$51 -> 11 | M8: =A!$L$51 -> 18 | N8: =A!$M$51 -> -7 | O8: =A!N51 -> 0.333
B9: 7º | C9: 7 | D9: =A!$C$52 -> HAMILTON-BQ | G9: =A!$F$52 -> 0 | H9: =A!$G$52 -> 6 | I9: =A!$H$52 -> 0 | J9: =A!$I$52 -> 0 | K9: =A!$J$52 -> 6 | L9: =A!$K$52 -> 0 | M9: =A!$L$52 -> 6 | N9: =A!$M$52 -> -6 | O9: =A!N52 -> 0
B10: 8º | C10: 8 | D10: =A!$C$53 -> VAGO-W.O | G10: =A!$F$53 -> 0 | H10: =A!$G$53 -> 6 | I10: =A!$H$53 -> 0 | J10: =A!$I$53 -> 0 | K10: =A!$J$53 -> 6 | L10: =A!$K$53 -> 0 | M10: =A!$L$53 -> 6 | N10: =A!$M$53 -> -6 | O10: =A!N53 -> 0
C12: GRUPO B
C13: Equipes | G13: PG | H13: J | I13: V | J13: E | K13: D | L13: GP | M13: GC | N13: SG | O13: APROV
B14: 1º | C14: 1 | D14: =B!$C$46 -> ROMAR-CRVG | G14: =B!$F$46 -> 18 | H14: =B!$G$46 -> 7 | I14: =B!$H$46 -> 6 | J14: =B!$I$46 -> 0 | K14: =B!$J$46 -> 1 | L14: =B!$K$46 -> 21 | M14: =B!$L$46 -> 11 | N14: =B!$M$46 -> 10 | O14: =B!N46 -> 0.857
B15: 2º | C15: 2 | D15: =B!$C$47 -> FELIPE-CRF | G15: =B!$F$47 -> 15 | H15: =B!$G$47 -> 7 | I15: =B!$H$47 -> 5 | J15: =B!$I$47 -> 0 | K15: =B!$J$47 -> 2 | L15: =B!$K$47 -> 16 | M15: =B!$L$47 -> 13 | N15: =B!$M$47 -> 3 | O15: =B!N47 -> 0.714
B16: 3º | C16: 3 | D16: =B!$C$48 -> P.CARUSO-AABB-DF | G16: =B!$F$48 -> 13 | H16: =B!$G$48 -> 7 | I16: =B!$H$48 -> 4 | J16: =B!$I$48 -> 1 | K16: =B!$J$48 -> 2 | L16: =B!$K$48 -> 16 | M16: =B!$L$48 -> 13 | N16: =B!$M$48 -> 3 | O16: =B!N48 -> 0.619
B17: 4º | C17: 4 | D17: =B!$C$49 -> LYAN-FFC | G17: =B!$F$49 -> 12 | H17: =B!$G$49 -> 7 | I17: =B!$H$49 -> 4 | J17: =B!$I$49 -> 0 | K17: =B!$J$49 -> 3 | L17: =B!$K$49 -> 23 | M17: =B!$L$49 -> 17 | N17: =B!$M$49 -> 6 | O17: =B!N49 -> 0.571
B18: 5º | C18: 5 | D18: =B!$C$50 -> TAVARES-CRVG | G18: =B!$F$50 -> 12 | H18: =B!$G$50 -> 7 | I18: =B!$H$50 -> 4 | J18: =B!$I$50 -> 0 | K18: =B!$J$50 -> 3 | L18: =B!$K$50 -> 21 | M18: =B!$L$50 -> 21 | N18: =B!$M$50 -> 0 | O18: =B!N50 -> 0.571
B19: 6º | C19: 6 | D19: =B!$C$51 -> MARCELO-BQ | G19: =B!$F$51 -> 7 | H19: =B!$G$51 -> 7 | I19: =B!$H$51 -> 2 | J19: =B!$I$51 -> 1 | K19: =B!$J$51 -> 4 | L19: =B!$K$51 -> 9 | M19: =B!$L$51 -> 17 | N19: =B!$M$51 -> -8 | O19: =B!N51 -> 0.333
B20: 7º | C20: 7 | D20: =B!$C$52 -> B. ASSUMPÇÃO-BQ | G20: =B!$F$52 -> 6 | H20: =B!$G$52 -> 7 | I20: =B!$H$52 -> 2 | J20: =B!$I$52 -> 0 | K20: =B!$J$52 -> 5 | L20: =B!$K$52 -> 7 | M20: =B!$L$52 -> 14 | N20: =B!$M$52 -> -7 | O20: =B!N52 -> 0.286
B21: 8º | C21: 8 | D21: =B!$C$53 -> VAGO-W.O | G21: =B!$F$53 -> 0 | H21: =B!$G$53 -> 7 | I21: =B!$H$53 -> 0 | J21: =B!$I$53 -> 0 | K21: =B!$J$53 -> 7 | L21: =B!$K$53 -> 0 | M21: =B!$L$53 -> 7 | N21: =B!$M$53 -> -7 | O21: =B!N53 -> 0
C23: GRUPO C
C24: Equipes | G24: PG | H24: J | I24: V | J24: E | K24: D | L24: GP | M24: GC | N24: SG | O24: APROV
B25: 1º | C25: 1 | D25: ='C'!$C$46 -> BRAYNER-CRVG | G25: ='C'!$F$46 -> 19 | H25: ='C'!$G$46 -> 7 | I25: ='C'!$H$46 -> 6 | J25: ='C'!$I$46 -> 1 | K25: ='C'!$J$46 -> 0 | L25: ='C'!$K$46 -> 26 | M25: ='C'!$L$46 -> 12 | N25: ='C'!$M$46 -> 14 | O25: ='C'!N46 -> 0.905
B26: 2º | C26: 2 | D26: ='C'!$C$47 -> ALMO-CC | G26: ='C'!$F$47 -> 17 | H26: ='C'!$G$47 -> 7 | I26: ='C'!$H$47 -> 5 | J26: ='C'!$I$47 -> 2 | K26: ='C'!$J$47 -> 0 | L26: ='C'!$K$47 -> 21 | M26: ='C'!$L$47 -> 14 | N26: ='C'!$M$47 -> 7 | O26: ='C'!N47 -> 0.810
B27: 3º | C27: 3 | D27: ='C'!$C$48 -> GIUSEPE-BOT-DF | G27: ='C'!$F$48 -> 16 | H27: ='C'!$G$48 -> 7 | I27: ='C'!$H$48 -> 5 | J27: ='C'!$I$48 -> 1 | K27: ='C'!$J$48 -> 1 | L27: ='C'!$K$48 -> 16 | M27: ='C'!$L$48 -> 10 | N27: ='C'!$M$48 -> 6 | O27: ='C'!N48 -> 0.762
B28: 4º | C28: 4 | D28: ='C'!$C$49 -> GILBERTO-ASBAC | G28: ='C'!$F$49 -> 9 | H28: ='C'!$G$49 -> 7 | I28: ='C'!$H$49 -> 3 | J28: ='C'!$I$49 -> 0 | K28: ='C'!$J$49 -> 4 | L28: ='C'!$K$49 -> 19 | M28: ='C'!$L$49 -> 20 | N28: ='C'!$M$49 -> -1 | O28: ='C'!N49 -> 0.429
B29: 5º | C29: 5 | D29: ='C'!$C$50 -> REBEL-ADDP | G29: ='C'!$F$50 -> 9 | H29: ='C'!$G$50 -> 7 | I29: ='C'!$H$50 -> 3 | J29: ='C'!$I$50 -> 0 | K29: ='C'!$J$50 -> 4 | L29: ='C'!$K$50 -> 12 | M29: ='C'!$L$50 -> 20 | N29: ='C'!$M$50 -> -8 | O29: ='C'!N50 -> 0.429
B30: 6º | C30: 6 | D30: ='C'!$C$51 -> NILSON-CC | G30: ='C'!$F$51 -> 6 | H30: ='C'!$G$51 -> 7 | I30: ='C'!$H$51 -> 2 | J30: ='C'!$I$51 -> 0 | K30: ='C'!$J$51 -> 5 | L30: ='C'!$K$51 -> 10 | M30: ='C'!$L$51 -> 13 | N30: ='C'!$M$51 -> -3 | O30: ='C'!N51 -> 0.286
B31: 7º | C31: 7 | D31: ='C'!$C$52 -> CARLOS-APCEF-DF | G31: ='C'!$F$52 -> 6 | H31: ='C'!$G$52 -> 7 | I31: ='C'!$H$52 -> 2 | J31: ='C'!$I$52 -> 0 | K31: ='C'!$J$52 -> 5 | L31: ='C'!$K$52 -> 14 | M31: ='C'!$L$52 -> 22 | N31: ='C'!$M$52 -> -8 | O31: ='C'!N52 -> 0.286
B32: 8º | C32: 8 | D32: ='C'!$C$53 -> VAGO-W.O | G32: ='C'!$F$53 -> 0 | H32: ='C'!$G$53 -> 7 | I32: ='C'!$H$53 -> 0 | J32: ='C'!$I$53 -> 0 | K32: ='C'!$J$53 -> 7 | L32: ='C'!$K$53 -> 0 | M32: ='C'!$L$53 -> 7 | N32: ='C'!$M$53 -> -7 | O32: ='C'!N53 -> 0
C45: GRUPO D
C46: Equipes | G46: PG | H46: J | I46: V | J46: E | K46: D | L46: GP | M46: GC | N46: SG | O46: APROV
B47: 1º | C47: 1 | D47: =D!$C$46 -> RICARDO-CRF | G47: =D!$F$46 -> 18 | H47: =D!$G$46 -> 7 | I47: =D!$H$46 -> 6 | J47: =D!$I$46 -> 0 | K47: =D!$J$46 -> 1 | L47: =D!$K$46 -> 22 | M47: =D!$L$46 -> 12 | N47: =D!$M$46 -> 10 | O47: =D!N46 -> 0.857
B48: 2º | C48: 2 | D48: =D!$C$47 -> LUCIANO-CRF | G48: =D!$F$47 -> 16 | H48: =D!$G$47 -> 7 | I48: =D!$H$47 -> 5 | J48: =D!$I$47 -> 1 | K48: =D!$J$47 -> 1 | L48: =D!$K$47 -> 12 | M48: =D!$L$47 -> 9 | N48: =D!$M$47 -> 3 | O48: =D!N47 -> 0.762
B49: 3º | C49: 3 | D49: =D!$C$48 -> LOPES-RIVER | G49: =D!$F$48 -> 14 | H49: =D!$G$48 -> 7 | I49: =D!$H$48 -> 4 | J49: =D!$I$48 -> 2 | K49: =D!$J$48 -> 1 | L49: =D!$K$48 -> 18 | M49: =D!$L$48 -> 11 | N49: =D!$M$48 -> 7 | O49: =D!N48 -> 0.667
B50: 4º | C50: 4 | D50: =D!$C$49 -> EDWARD-BQ | G50: =D!$F$49 -> 14 | H50: =D!$G$49 -> 7 | I50: =D!$H$49 -> 4 | J50: =D!$I$49 -> 2 | K50: =D!$J$49 -> 1 | L50: =D!$K$49 -> 11 | M50: =D!$L$49 -> 9 | N50: =D!$M$49 -> 2 | O50: =D!N49 -> 0.667
B51: 5º | C51: 5 | D51: =D!$C$50 -> ROGÉRIO-APCEF | G51: =D!$F$50 -> 10 | H51: =D!$G$50 -> 7 | I51: =D!$H$50 -> 3 | J51: =D!$I$50 -> 1 | K51: =D!$J$50 -> 3 | L51: =D!$K$50 -> 10 | M51: =D!$L$50 -> 10 | N51: =D!$M$50 -> 0 | O51: =D!N50 -> 0.476
B52: 6º | C52: 6 | D52: =D!$C$51 -> KLAUS-APCEF | G52: =D!$F$51 -> 6 | H52: =D!$G$51 -> 7 | I52: =D!$H$51 -> 2 | J52: =D!$I$51 -> 0 | K52: =D!$J$51 -> 5 | L52: =D!$K$51 -> 10 | M52: =D!$L$51 -> 20 | N52: =D!$M$51 -> -10 | O52: =D!N51 -> 0.286
B53: 7º | C53: 7 | D53: =D!$C$52 -> DANIEL-CRVG | G53: =D!$F$52 -> 1 | H53: =D!$G$52 -> 7 | I53: =D!$H$52 -> 0 | J53: =D!$I$52 -> 1 | K53: =D!$J$52 -> 6 | L53: =D!$K$52 -> 0 | M53: =D!$L$52 -> 6 | N53: =D!$M$52 -> -6 | O53: =D!N52 -> 0.048
B54: 8º | C54: 8 | D54: =D!$C$53 -> VAGO-W.O | G54: =D!$F$53 -> 1 | H54: =D!$G$53 -> 7 | I54: =D!$H$53 -> 0 | J54: =D!$I$53 -> 1 | K54: =D!$J$53 -> 6 | L54: =D!$K$53 -> 0 | M54: =D!$L$53 -> 6 | N54: =D!$M$53 -> -6 | O54: =D!N53 -> 0.048
C56: GRUPO E
C57: Equipes | G57: PG | H57: J | I57: V | J57: E | K57: D | L57: GP | M57: GC | N57: SG | O57: APROV
B58: 1º | C58: 1 | D58: =E!$C$46 -> RONALD-CRF | G58: =E!$F$46 -> 19 | H58: =E!$G$46 -> 7 | I58: =E!$H$46 -> 6 | J58: =E!$I$46 -> 1 | K58: =E!$J$46 -> 0 | L58: =E!$K$46 -> 27 | M58: =E!$L$46 -> 14 | N58: =E!$M$46 -> 13 | O58: =E!N46 -> 0.905
B59: 2º | C59: 2 | D59: =E!$C$47 -> L.HENRIQUE-TUPI | G59: =E!$F$47 -> 14 | H59: =E!$G$47 -> 7 | I59: =E!$H$47 -> 4 | J59: =E!$I$47 -> 2 | K59: =E!$J$47 -> 1 | L59: =E!$K$47 -> 18 | M59: =E!$L$47 -> 14 | N59: =E!$M$47 -> 4 | O59: =E!N47 -> 0.667
B60: 3º | C60: 3 | D60: =E!$C$48 -> MARCUS-BQ | G60: =E!$F$48 -> 13 | H60: =E!$G$48 -> 7 | I60: =E!$H$48 -> 4 | J60: =E!$I$48 -> 1 | K60: =E!$J$48 -> 2 | L60: =E!$K$48 -> 14 | M60: =E!$L$48 -> 11 | N60: =E!$M$48 -> 3 | O60: =E!N48 -> 0.619
B61: 4º | C61: 4 | D61: =E!$C$49 -> MENDEZ-CRVG | G61: =E!$F$49 -> 11 | H61: =E!$G$49 -> 7 | I61: =E!$H$49 -> 3 | J61: =E!$I$49 -> 2 | K61: =E!$J$49 -> 2 | L61: =E!$K$49 -> 13 | M61: =E!$L$49 -> 14 | N61: =E!$M$49 -> -1 | O61: =E!N49 -> 0.524
B62: 5º | C62: 5 | D62: =E!$C$50 -> MATOSO-CRVG | G62: =E!$F$50 -> 9 | H62: =E!$G$50 -> 7 | I62: =E!$H$50 -> 2 | J62: =E!$I$50 -> 3 | K62: =E!$J$50 -> 2 | L62: =E!$K$50 -> 10 | M62: =E!$L$50 -> 12 | N62: =E!$M$50 -> -2 | O62: =E!N50 -> 0.429
B63: 6º | C63: 6 | D63: =E!$C$51 -> ARMANDO-PE | G63: =E!$F$51 -> 6 | H63: =E!$G$51 -> 7 | I63: =E!$H$51 -> 1 | J63: =E!$I$51 -> 3 | K63: =E!$J$51 -> 3 | L63: =E!$K$51 -> 5 | M63: =E!$L$51 -> 8 | N63: =E!$M$51 -> -3 | O63: =E!N51 -> 0.286
B64: 7º | C64: 7 | D64: =E!$C$52 -> ANDRÉ-BQ | G64: =E!$F$52 -> 5 | H64: =E!$G$52 -> 7 | I64: =E!$H$52 -> 1 | J64: =E!$I$52 -> 2 | K64: =E!$J$52 -> 4 | L64: =E!$K$52 -> 5 | M64: =E!$L$52 -> 12 | N64: =E!$M$52 -> -7 | O64: =E!N52 -> 0.238
B65: 8º | C65: 8 | D65: =E!$C$53 -> VAGO-W.O | G65: =E!$F$53 -> 0 | H65: =E!$G$53 -> 7 | I65: =E!$H$53 -> 0 | J65: =E!$I$53 -> 0 | K65: =E!$J$53 -> 7 | L65: =E!$K$53 -> 0 | M65: =E!$L$53 -> 7 | N65: =E!$M$53 -> -7 | O65: =E!N53 -> 0
C67: GRUPO F
C68: Equipes | G68: PG | H68: J | I68: V | J68: E | K68: D | L68: GP | M68: GC | N68: SG | O68: APROV
B69: 1º | C69: 1 | D69: =F!$C$46 -> FERNANDO-BOT-DF | G69: =F!$F$46 -> 19 | H69: =F!$G$46 -> 7 | I69: =F!$H$46 -> 6 | J69: =F!$I$46 -> 1 | K69: =F!$J$46 -> 0 | L69: =F!$K$46 -> 20 | M69: =F!$L$46 -> 8 | N69: =F!$M$46 -> 12 | O69: =F!N46 -> 0.905
B70: 2º | C70: 2 | D70: =F!$C$47 -> AIRES-ASBAC | G70: =F!$F$47 -> 17 | H70: =F!$G$47 -> 7 | I70: =F!$H$47 -> 5 | J70: =F!$I$47 -> 2 | K70: =F!$J$47 -> 0 | L70: =F!$K$47 -> 19 | M70: =F!$L$47 -> 10 | N70: =F!$M$47 -> 9 | O70: =F!N47 -> 0.810
B71: 3º | C71: 3 | D71: =F!$C$48 -> GATTO-CRVG | G71: =F!$F$48 -> 13 | H71: =F!$G$48 -> 7 | I71: =F!$H$48 -> 4 | J71: =F!$I$48 -> 1 | K71: =F!$J$48 -> 2 | L71: =F!$K$48 -> 22 | M71: =F!$L$48 -> 17 | N71: =F!$M$48 -> 5 | O71: =F!N48 -> 0.619
B72: 4º | C72: 4 | D72: =F!$C$49 -> VERAS-CRF | G72: =F!$F$49 -> 12 | H72: =F!$G$49 -> 7 | I72: =F!$H$49 -> 4 | J72: =F!$I$49 -> 0 | K72: =F!$J$49 -> 3 | L72: =F!$K$49 -> 19 | M72: =F!$L$49 -> 17 | N72: =F!$M$49 -> 2 | O72: =F!N49 -> 0.571
B73: 5º | C73: 5 | D73: =F!$C$50 -> ZÉ LUIZ-CRF | G73: =F!$F$50 -> 10 | H73: =F!$G$50 -> 7 | I73: =F!$H$50 -> 3 | J73: =F!$I$50 -> 1 | K73: =F!$J$50 -> 3 | L73: =F!$K$50 -> 11 | M73: =F!$L$50 -> 14 | N73: =F!$M$50 -> -3 | O73: =F!N50 -> 0.476
B74: 6º | C74: 6 | D74: =F!$C$51 -> KADHU-CRVG | G74: =F!$F$51 -> 7 | H74: =F!$G$51 -> 7 | I74: =F!$H$51 -> 2 | J74: =F!$I$51 -> 1 | K74: =F!$J$51 -> 4 | L74: =F!$K$51 -> 13 | M74: =F!$L$51 -> 21 | N74: =F!$M$51 -> -8 | O74: =F!N51 -> 0.333
B75: 7º | C75: 7 | D75: =F!$C$52 -> BELMIRO-RIVER | G75: =F!$F$52 -> 3 | H75: =F!$G$52 -> 7 | I75: =F!$H$52 -> 1 | J75: =F!$I$52 -> 0 | K75: =F!$J$52 -> 6 | L75: =F!$K$52 -> 10 | M75: =F!$L$52 -> 20 | N75: =F!$M$52 -> -10 | O75: =F!N52 -> 0.143
B76: 8º | C76: 8 | D76: =F!$C$53 -> VAGO-W.O | G76: =F!$F$53 -> 0 | H76: =F!$G$53 -> 7 | I76: =F!$H$53 -> 0 | J76: =F!$I$53 -> 0 | K76: =F!$J$53 -> 7 | L76: =F!$K$53 -> 0 | M76: =F!$L$53 -> 7 | N76: =F!$M$53 -> -7 | O76: =F!N53 -> 0

Sheet Classificação
F4: 4 | G4: 5 | H4: 6 | I4: 7 | J4: 8 | K4: 9 | L4: 10 | M4: 11 | N4: 12
A5: Geral | B5: Série | C5: Atletas | F5: PG | G5: J | H5: V | I5: E | J5: D | K5: GP | L5: GC | M5: SG | N5: % | O5: MGP | P5: MGC
A6: 1º | B6: OURO/PRATA | C6: ='C'!$C$46 -> BRAYNER-CRVG | F6: =VLOOKUP($C6,Resumo!$D:$O,F$4,0) -> 19 | G6: =VLOOKUP($C6,Resumo!$D:$O,G$4,0) -> 7 | H6: =VLOOKUP($C6,Resumo!$D:$O,H$4,0) -> 6 | I6: =VLOOKUP($C6,Resumo!$D:$O,I$4,0) -> 1 | J6: =VLOOKUP($C6,Resumo!$D:$O,J$4,0) -> 0 | K6: =VLOOKUP($C6,Resumo!$D:$O,K$4,0) -> 26 | L6: =VLOOKUP($C6,Resumo!$D:$O,L$4,0) -> 12 | M6: =VLOOKUP($C6,Resumo!$D:$O,M$4,0) -> 14 | N6: =VLOOKUP($C6,Resumo!$D:$O,N$4,0) -> 0.90 | O6: =K6/G6 -> 3.71 | P6: =L6/G6 -> 1.71
A7: 2º | B7: OURO/PRATA | C7: =E!$C$46 -> RONALD-CRF | F7: =VLOOKUP($C7,Resumo!$D:$O,F$4,0) -> 19 | G7: =VLOOKUP($C7,Resumo!$D:$O,G$4,0) -> 7 | H7: =VLOOKUP($C7,Resumo!$D:$O,H$4,0) -> 6 | I7: =VLOOKUP($C7,Resumo!$D:$O,I$4,0) -> 1 | J7: =VLOOKUP($C7,Resumo!$D:$O,J$4,0) -> 0 | K7: =VLOOKUP($C7,Resumo!$D:$O,K$4,0) -> 27 | L7: =VLOOKUP($C7,Resumo!$D:$O,L$4,0) -> 14 | M7: =VLOOKUP($C7,Resumo!$D:$O,M$4,0) -> 13 | N7: =VLOOKUP($C7,Resumo!$D:$O,N$4,0) -> 0.90 | O7: 3.86 | P7: 2.00
A8: 3º | B8: OURO/PRATA | C8: =F!$C$46 -> FERNANDO-BOT-DF | F8: =VLOOKUP($C8,Resumo!$D:$O,F$4,0) -> 19 | G8: =VLOOKUP($C8,Resumo!$D:$O,G$4,0) -> 7 | H8: =VLOOKUP($C8,Resumo!$D:$O,H$4,0) -> 6 | I8: =VLOOKUP($C8,Resumo!$D:$O,I$4,0) -> 1 | J8: =VLOOKUP($C8,Resumo!$D:$O,J$4,0) -> 0 | K8: =VLOOKUP($C8,Resumo!$D:$O,K$4,0) -> 20 | L8: =VLOOKUP($C8,Resumo!$D:$O,L$4,0) -> 8 | M8: =VLOOKUP($C8,Resumo!$D:$O,M$4,0) -> 12 | N8: =VLOOKUP($C8,Resumo!$D:$O,N$4,0) -> 0.90 | O8: 2.86 | P8: 1.14
A9: 4º | B9: OURO/PRATA | C9: =D!$C$46 -> RICARDO-CRF | F9: =VLOOKUP($C9,Resumo!$D:$O,F$4,0) -> 18 | G9: =VLOOKUP($C9,Resumo!$D:$O,G$4,0) -> 7 | H9: =VLOOKUP($C9,Resumo!$D:$O,H$4,0) -> 6 | I9: =VLOOKUP($C9,Resumo!$D:$O,I$4,0) -> 0 | J9: =VLOOKUP($C9,Resumo!$D:$O,J$4,0) -> 1 | K9: =VLOOKUP($C9,Resumo!$D:$O,K$4,0) -> 22 | L9: =VLOOKUP($C9,Resumo!$D:$O,L$4,0) -> 12 | M9: =VLOOKUP($C9,Resumo!$D:$O,M$4,0) -> 10 | N9: =VLOOKUP($C9,Resumo!$D:$O,N$4,0) -> 0.86 | O9: 3.14 | P9: 1.71
A10: 5º | B10: OURO/PRATA | C10: =B!$C$46 -> ROMAR-CRVG | F10: =VLOOKUP($C10,Resumo!$D:$O,F$4,0) -> 18 | G10: =VLOOKUP($C10,Resumo!$D:$O,G$4,0) -> 7 | H10: =VLOOKUP($C10,Resumo!$D:$O,H$4,0) -> 6 | I10: =VLOOKUP($C10,Resumo!$D:$O,I$4,0) -> 0 | J10: =VLOOKUP($C10,Resumo!$D:$O,J$4,0) -> 1 | K10: =VLOOKUP($C10,Resumo!$D:$O,K$4,0) -> 21 | L10: =VLOOKUP($C10,Resumo!$D:$O,L$4,0) -> 11 | M10: =VLOOKUP($C10,Resumo!$D:$O,M$4,0) -> 10 | N10: =VLOOKUP($C10,Resumo!$D:$O,N$4,0) -> 0.86 | O10: 3.00 | P10: 1.57
A11: 6º | B11: OURO/PRATA | C11: =F!$C$47 -> AIRES-ASBAC | F11: =VLOOKUP($C11,Resumo!$D:$O,F$4,0) -> 17 | G11: =VLOOKUP($C11,Resumo!$D:$O,G$4,0) -> 7 | H11: =VLOOKUP($C11,Resumo!$D:$O,H$4,0) -> 5 | I11: =VLOOKUP($C11,Resumo!$D:$O,I$4,0) -> 2 | J11: =VLOOKUP($C11,Resumo!$D:$O,J$4,0) -> 0 | K11: =VLOOKUP($C11,Resumo!$D:$O,K$4,0) -> 19 | L11: =VLOOKUP($C11,Resumo!$D:$O,L$4,0) -> 10 | M11: =VLOOKUP($C11,Resumo!$D:$O,M$4,0) -> 9 | N11: =VLOOKUP($C11,Resumo!$D:$O,N$4,0) -> 0.81 | O11: 2.71 | P11: 1.43
A12: 7º | B12: OURO/PRATA | C12: ='C'!$C$47 -> ALMO-CC | F12: =VLOOKUP($C12,Resumo!$D:$O,F$4,0) -> 17 | G12: =VLOOKUP($C12,Resumo!$D:$O,G$4,0) -> 7 | H12: =VLOOKUP($C12,Resumo!$D:$O,H$4,0) -> 5 | I12: =VLOOKUP($C12,Resumo!$D:$O,I$4,0) -> 2 | J12: =VLOOKUP($C12,Resumo!$D:$O,J$4,0) -> 0 | K12: =VLOOKUP($C12,Resumo!$D:$O,K$4,0) -> 21 | L12: =VLOOKUP($C12,Resumo!$D:$O,L$4,0) -> 14 | M12: =VLOOKUP($C12,Resumo!$D:$O,M$4,0) -> 7 | N12: =VLOOKUP($C12,Resumo!$D:$O,N$4,0) -> 0.81 | O12: 3.00 | P12: 2.00
A13: 8º | B13: OURO/PRATA | C13: =A!$C$46 -> AUGUSTO-CRF | F13: =VLOOKUP($C13,Resumo!$D:$O,F$4,0) -> 17 | G13: =VLOOKUP($C13,Resumo!$D:$O,G$4,0) -> 7 | H13: =VLOOKUP($C13,Resumo!$D:$O,H$4,0) -> 5 | I13: =VLOOKUP($C13,Resumo!$D:$O,I$4,0) -> 2 | J13: =VLOOKUP($C13,Resumo!$D:$O,J$4,0) -> 0 | K13: =VLOOKUP($C13,Resumo!$D:$O,K$4,0) -> 18 | L13: =VLOOKUP($C13,Resumo!$D:$O,L$4,0) -> 11 | M13: =VLOOKUP($C13,Resumo!$D:$O,M$4,0) -> 7 | N13: =VLOOKUP($C13,Resumo!$D:$O,N$4,0) -> 0.81 | O13: 2.57 | P13: 1.57
A14: 9º | B14: OURO/PRATA | C14: ='C'!$C$48 -> GIUSEPE-BOT-DF | F14: =VLOOKUP($C14,Resumo!$D:$O,F$4,0) -> 16 | G14: =VLOOKUP($C14,Resumo!$D:$O,G$4,0) -> 7 | H14: =VLOOKUP($C14,Resumo!$D:$O,H$4,0) -> 5 | I14: =VLOOKUP($C14,Resumo!$D:$O,I$4,0) -> 1 | J14: =VLOOKUP($C14,Resumo!$D:$O,J$4,0) -> 1 | K14: =VLOOKUP($C14,Resumo!$D:$O,K$4,0) -> 16 | L14: =VLOOKUP($C14,Resumo!$D:$O,L$4,0) -> 10 | M14: =VLOOKUP($C14,Resumo!$D:$O,M$4,0) -> 6 | N14: =VLOOKUP($C14,Resumo!$D:$O,N$4,0) -> 0.76 | O14: 2.29 | P14: 1.43
A15: 10º | B15: OURO/PRATA | C15: =A!$C$47 -> WELLINGTON-ADDP | F15: =VLOOKUP($C15,Resumo!$D:$O,F$4,0) -> 16 | G15: =VLOOKUP($C15,Resumo!$D:$O,G$4,0) -> 7 | H15: =VLOOKUP($C15,Resumo!$D:$O,H$4,0) -> 5 | I15: =VLOOKUP($C15,Resumo!$D:$O,I$4,0) -> 1 | J15: =VLOOKUP($C15,Resumo!$D:$O,J$4,0) -> 1 | K15: =VLOOKUP($C15,Resumo!$D:$O,K$4,0) -> 15 | L15: =VLOOKUP($C15,Resumo!$D:$O,L$4,0) -> 10 | M15: =VLOOKUP($C15,Resumo!$D:$O,M$4,0) -> 5 | N15: =VLOOKUP($C15,Resumo!$D:$O,N$4,0) -> 0.76 | O15: 2.14 | P15: 1.43
A16: 11º | B16: OURO/PRATA | C16: =D!$C$47 -> LUCIANO-CRF | F16: =VLOOKUP($C16,Resumo!$D:$O,F$4,0) -> 16 | G16: =VLOOKUP($C16,Resumo!$D:$O,G$4,0) -> 7 | H16: =VLOOKUP($C16,Resumo!$D:$O,H$4,0) -> 5 | I16: =VLOOKUP($C16,Resumo!$D:$O,I$4,0) -> 1 | J16: =VLOOKUP($C16,Resumo!$D:$O,J$4,0) -> 1 | K16: =VLOOKUP($C16,Resumo!$D:$O,K$4,0) -> 12 | L16: =VLOOKUP($C16,Resumo!$D:$O,L$4,0) -> 9 | M16: =VLOOKUP($C16,Resumo!$D:$O,M$4,0) -> 3 | N16: =VLOOKUP($C16,Resumo!$D:$O,N$4,0) -> 0.76 | O16: 1.71 | P16: 1.29
A17: 12º | B17: OURO/PRATA | C17: =B!$C$47 -> FELIPE-CRF | F17: =VLOOKUP($C17,Resumo!$D:$O,F$4,0) -> 15 | G17: =VLOOKUP($C17,Resumo!$D:$O,G$4,0) -> 7 | H17: =VLOOKUP($C17,Resumo!$D:$O,H$4,0) -> 5 | I17: =VLOOKUP($C17,Resumo!$D:$O,I$4,0) -> 0 | J17: =VLOOKUP($C17,Resumo!$D:$O,J$4,0) -> 2 | K17: =VLOOKUP($C17,Resumo!$D:$O,K$4,0) -> 16 | L17: =VLOOKUP($C17,Resumo!$D:$O,L$4,0) -> 13 | M17: =VLOOKUP($C17,Resumo!$D:$O,M$4,0) -> 3 | N17: =VLOOKUP($C17,Resumo!$D:$O,N$4,0) -> 0.71 | O17: 2.29 | P17: 1.86
A18: 13º | B18: OURO/PRATA | C18: =A!$C$48 -> B. RAFAEL-SANTOS | F18: =VLOOKUP($C18,Resumo!$D:$O,F$4,0) -> 15 | G18: =VLOOKUP($C18,Resumo!$D:$O,G$4,0) -> 7 | H18: =VLOOKUP($C18,Resumo!$D:$O,H$4,0) -> 5 | I18: =VLOOKUP($C18,Resumo!$D:$O,I$4,0) -> 0 | J18: =VLOOKUP($C18,Resumo!$D:$O,J$4,0) -> 2 | K18: =VLOOKUP($C18,Resumo!$D:$O,K$4,0) -> 15 | L18: =VLOOKUP($C18,Resumo!$D:$O,L$4,0) -> 12 | M18: =VLOOKUP($C18,Resumo!$D:$O,M$4,0) -> 3 | N18: =VLOOKUP($C18,Resumo!$D:$O,N$4,0) -> 0.71 | O18: 2.14 | P18: 1.71
A19: 14º | B19: OURO/PRATA | C19: =D!$C$48 -> LOPES-RIVER | F19: =VLOOKUP($C19,Resumo!$D:$O,F$4,0) -> 14 | G19: =VLOOKUP($C19,Resumo!$D:$O,G$4,0) -> 7 | H19: =VLOOKUP($C19,Resumo!$D:$O,H$4,0) -> 4 | I19: =VLOOKUP($C19,Resumo!$D:$O,I$4,0) -> 2 | J19: =VLOOKUP($C19,Resumo!$D:$O,J$4,0) -> 1 | K19: =VLOOKUP($C19,Resumo!$D:$O,K$4,0) -> 18 | L19: =VLOOKUP($C19,Resumo!$D:$O,L$4,0) -> 11 | M19: =VLOOKUP($C19,Resumo!$D:$O,M$4,0) -> 7 | N19: =VLOOKUP($C19,Resumo!$D:$O,N$4,0) -> 0.67 | O19: 2.57 | P19: 1.57
A20: 15º | B20: OURO/PRATA | C20: =E!$C$47 -> L.HENRIQUE-TUPI | F20: =VLOOKUP($C20,Resumo!$D:$O,F$4,0) -> 14 | G20: =VLOOKUP($C20,Resumo!$D:$O,G$4,0) -> 7 | H20: =VLOOKUP($C20,Resumo!$D:$O,H$4,0) -> 4 | I20: =VLOOKUP($C20,Resumo!$D:$O,I$4,0) -> 2 | J20: =VLOOKUP($C20,Resumo!$D:$O,J$4,0) -> 1 | K20: =VLOOKUP($C20,Resumo!$D:$O,K$4,0) -> 18 | L20: =VLOOKUP($C20,Resumo!$D:$O,L$4,0) -> 14 | M20: =VLOOKUP($C20,Resumo!$D:$O,M$4,0) -> 4 | N20: =VLOOKUP($C20,Resumo!$D:$O,N$4,0) -> 0.67 | O20: 2.57 | P20: 2.00
A21: 16º | B21: OURO/PRATA | C21: =D!$C$49 -> EDWARD-BQ | F21: =VLOOKUP($C21,Resumo!$D:$O,F$4,0) -> 14 | G21: =VLOOKUP($C21,Resumo!$D:$O,G$4,0) -> 7 | H21: =VLOOKUP($C21,Resumo!$D:$O,H$4,0) -> 4 | I21: =VLOOKUP($C21,Resumo!$D:$O,I$4,0) -> 2 | J21: =VLOOKUP($C21,Resumo!$D:$O,J$4,0) -> 1 | K21: =VLOOKUP($C21,Resumo!$D:$O,K$4,0) -> 11 | L21: =VLOOKUP($C21,Resumo!$D:$O,L$4,0) -> 9 | M21: =VLOOKUP($C21,Resumo!$D:$O,M$4,0) -> 2 | N21: =VLOOKUP($C21,Resumo!$D:$O,N$4,0) -> 0.67 | O21: 1.57 | P21: 1.29
A22: 17º | B22: OURO/PRATA | C22: =F!$C$48 -> GATTO-CRVG | F22: =VLOOKUP($C22,Resumo!$D:$O,F$4,0) -> 13 | G22: =VLOOKUP($C22,Resumo!$D:$O,G$4,0) -> 7 | H22: =VLOOKUP($C22,Resumo!$D:$O,H$4,0) -> 4 | I22: =VLOOKUP($C22,Resumo!$D:$O,I$4,0) -> 1 | J22: =VLOOKUP($C22,Resumo!$D:$O,J$4,0) -> 2 | K22: =VLOOKUP($C22,Resumo!$D:$O,K$4,0) -> 22 | L22: =VLOOKUP($C22,Resumo!$D:$O,L$4,0) -> 17 | M22: =VLOOKUP($C22,Resumo!$D:$O,M$4,0) -> 5 | N22: =VLOOKUP($C22,Resumo!$D:$O,N$4,0) -> 0.62 | O22: 3.14 | P22: 2.43
A23: 18º | B23: OURO/PRATA | C23: =B!$C$48 -> P.CARUSO-AABB-DF | F23: =VLOOKUP($C23,Resumo!$D:$O,F$4,0) -> 13 | G23: =VLOOKUP($C23,Resumo!$D:$O,G$4,0) -> 7 | H23: =VLOOKUP($C23,Resumo!$D:$O,H$4,0) -> 4 | I23: =VLOOKUP($C23,Resumo!$D:$O,I$4,0) -> 1 | J23: =VLOOKUP($C23,Resumo!$D:$O,J$4,0) -> 2 | K23: =VLOOKUP($C23,Resumo!$D:$O,K$4,0) -> 16 | L23: =VLOOKUP($C23,Resumo!$D:$O,L$4,0) -> 13 | M23: =VLOOKUP($C23,Resumo!$D:$O,M$4,0) -> 3 | N23: =VLOOKUP($C23,Resumo!$D:$O,N$4,0) -> 0.62 | O23: 2.29 | P23: 1.86
A24: 19º | B24: OURO/PRATA | C24: =E!$C$48 -> MARCUS-BQ | F24: =VLOOKUP($C24,Resumo!$D:$O,F$4,0) -> 13 | G24: =VLOOKUP($C24,Resumo!$D:$O,G$4,0) -> 7 | H24: =VLOOKUP($C24,Resumo!$D:$O,H$4,0) -> 4 | I24: =VLOOKUP($C24,Resumo!$D:$O,I$4,0) -> 1 | J24: =VLOOKUP($C24,Resumo!$D:$O,J$4,0) -> 2 | K24: =VLOOKUP($C24,Resumo!$D:$O,K$4,0) -> 14 | L24: =VLOOKUP($C24,Resumo!$D:$O,L$4,0) -> 11 | M24: =VLOOKUP($C24,Resumo!$D:$O,M$4,0) -> 3 | N24: =VLOOKUP($C24,Resumo!$D:$O,N$4,0) -> 0.62 | O24: 2.00 | P24: 1.57
A25: 20º | B25: OURO/PRATA | C25: =A!$C$49 -> PAULINHO-BOT-DF | F25: =VLOOKUP($C25,Resumo!$D:$O,F$4,0) -> 13 | G25: =VLOOKUP($C25,Resumo!$D:$O,G$4,0) -> 7 | H25: =VLOOKUP($C25,Resumo!$D:$O,H$4,0) -> 4 | I25: =VLOOKUP($C25,Resumo!$D:$O,I$4,0) -> 1 | J25: =VLOOKUP($C25,Resumo!$D:$O,J$4,0) -> 2 | K25: =VLOOKUP($C25,Resumo!$D:$O,K$4,0) -> 12 | L25: =VLOOKUP($C25,Resumo!$D:$O,L$4,0) -> 10 | M25: =VLOOKUP($C25,Resumo!$D:$O,M$4,0) -> 2 | N25: =VLOOKUP($C25,Resumo!$D:$O,N$4,0) -> 0.62 | O25: 1.71 | P25: 1.43
A26: 21º | B26: OURO/PRATA | C26: =B!$C$49 -> LYAN-FFC | F26: =VLOOKUP($C26,Resumo!$D:$O,F$4,0) -> 12 | G26: =VLOOKUP($C26,Resumo!$D:$O,G$4,0) -> 7 | H26: =VLOOKUP($C26,Resumo!$D:$O,H$4,0) -> 4 | I26: =VLOOKUP($C26,Resumo!$D:$O,I$4,0) -> 0 | J26: =VLOOKUP($C26,Resumo!$D:$O,J$4,0) -> 3 | K26: =VLOOKUP($C26,Resumo!$D:$O,K$4,0) -> 23 | L26: =VLOOKUP($C26,Resumo!$D:$O,L$4,0) -> 17 | M26: =VLOOKUP($C26,Resumo!$D:$O,M$4,0) -> 6 | N26: =VLOOKUP($C26,Resumo!$D:$O,N$4,0) -> 0.57 | O26: 3.29 | P26: 2.43
A27: 22º | B27: OURO/PRATA | C27: =F!$C$49 -> VERAS-CRF | F27: =VLOOKUP($C27,Resumo!$D:$O,F$4,0) -> 12 | G27: =VLOOKUP($C27,Resumo!$D:$O,G$4,0) -> 7 | H27: =VLOOKUP($C27,Resumo!$D:$O,H$4,0) -> 4 | I27: =VLOOKUP($C27,Resumo!$D:$O,I$4,0) -> 0 | J27: =VLOOKUP($C27,Resumo!$D:$O,J$4,0) -> 3 | K27: =VLOOKUP($C27,Resumo!$D:$O,K$4,0) -> 19 | L27: =VLOOKUP($C27,Resumo!$D:$O,L$4,0) -> 17 | M27: =VLOOKUP($C27,Resumo!$D:$O,M$4,0) -> 2 | N27: =VLOOKUP($C27,Resumo!$D:$O,N$4,0) -> 0.57 | O27: 2.71 | P27: 2.43
A28: 23º | B28: OURO/PRATA | C28: =E!$C$49 -> MENDEZ-CRVG | F28: =VLOOKUP($C28,Resumo!$D:$O,F$4,0) -> 11 | G28: =VLOOKUP($C28,Resumo!$D:$O,G$4,0) -> 7 | H28: =VLOOKUP($C28,Resumo!$D:$O,H$4,0) -> 3 | I28: =VLOOKUP($C28,Resumo!$D:$O,I$4,0) -> 2 | J28: =VLOOKUP($C28,Resumo!$D:$O,J$4,0) -> 2 | K28: =VLOOKUP($C28,Resumo!$D:$O,K$4,0) -> 13 | L28: =VLOOKUP($C28,Resumo!$D:$O,L$4,0) -> 14 | M28: =VLOOKUP($C28,Resumo!$D:$O,M$4,0) -> -1 | N28: =VLOOKUP($C28,Resumo!$D:$O,N$4,0) -> 0.52 | O28: 1.86 | P28: 2.00
A29: 24º | B29: OURO/PRATA | C29: ='C'!$C$49 -> GILBERTO-ASBAC | F29: =VLOOKUP($C29,Resumo!$D:$O,F$4,0) -> 9 | G29: =VLOOKUP($C29,Resumo!$D:$O,G$4,0) -> 7 | H29: =VLOOKUP($C29,Resumo!$D:$O,H$4,0) -> 3 | I29: =VLOOKUP($C29,Resumo!$D:$O,I$4,0) -> 0 | J29: =VLOOKUP($C29,Resumo!$D:$O,J$4,0) -> 4 | K29: =VLOOKUP($C29,Resumo!$D:$O,K$4,0) -> 19 | L29: =VLOOKUP($C29,Resumo!$D:$O,L$4,0) -> 20 | M29: =VLOOKUP($C29,Resumo!$D:$O,M$4,0) -> -1 | N29: =VLOOKUP($C29,Resumo!$D:$O,N$4,0) -> 0.43 | O29: 2.71 | P29: 2.86
A30: 25º | B30: PRATA/BRONZE | C30: =B!$C$50 -> TAVARES-CRVG | F30: =VLOOKUP($C30,Resumo!$D:$O,F$4,0) -> 12 | G30: =VLOOKUP($C30,Resumo!$D:$O,G$4,0) -> 7 | H30: =VLOOKUP($C30,Resumo!$D:$O,H$4,0) -> 4 | I30: =VLOOKUP($C30,Resumo!$D:$O,I$4,0) -> 0 | J30: =VLOOKUP($C30,Resumo!$D:$O,J$4,0) -> 3 | K30: =VLOOKUP($C30,Resumo!$D:$O,K$4,0) -> 21 | L30: =VLOOKUP($C30,Resumo!$D:$O,L$4,0) -> 21 | M30: =VLOOKUP($C30,Resumo!$D:$O,M$4,0) -> 0 | N30: =VLOOKUP($C30,Resumo!$D:$O,N$4,0) -> 0.57 | O30: 3.00 | P30: 3.00
A31: 26º | B31: PRATA/BRONZE | C31: =A!$C$50 -> B.MACHADO-BQ | F31: =VLOOKUP($C31,Resumo!$D:$O,F$4,0) -> 10 | G31: =VLOOKUP($C31,Resumo!$D:$O,G$4,0) -> 7 | H31: =VLOOKUP($C31,Resumo!$D:$O,H$4,0) -> 3 | I31: =VLOOKUP($C31,Resumo!$D:$O,I$4,0) -> 1 | J31: =VLOOKUP($C31,Resumo!$D:$O,J$4,0) -> 3 | K31: =VLOOKUP($C31,Resumo!$D:$O,K$4,0) -> 13 | L31: =VLOOKUP($C31,Resumo!$D:$O,L$4,0) -> 11 | M31: =VLOOKUP($C31,Resumo!$D:$O,M$4,0) -> 2 | N31: =VLOOKUP($C31,Resumo!$D:$O,N$4,0) -> 0.48 | O31: 1.86 | P31: 1.57
A32: 27º | B32: PRATA/BRONZE | C32: =D!$C$50 -> ROGÉRIO-APCEF | F32: =VLOOKUP($C32,Resumo!$D:$O,F$4,0) -> 10 | G32: =VLOOKUP($C32,Resumo!$D:$O,G$4,0) -> 7 | H32: =VLOOKUP($C32,Resumo!$D:$O,H$4,0) -> 3 | I32: =VLOOKUP($C32,Resumo!$D:$O,I$4,0) -> 1 | J32: =VLOOKUP($C32,Resumo!$D:$O,J$4,0) -> 3 | K32: =VLOOKUP($C32,Resumo!$D:$O,K$4,0) -> 10 | L32: =VLOOKUP($C32,Resumo!$D:$O,L$4,0) -> 10 | M32: =VLOOKUP($C32,Resumo!$D:$O,M$4,0) -> 0 | N32: =VLOOKUP($C32,Resumo!$D:$O,N$4,0) -> 0.48 | O32: 1.43 | P32: 1.43
A33: 28º | B33: PRATA/BRONZE | C33: =F!$C$50 -> ZÉ LUIZ-CRF | F33: =VLOOKUP($C33,Resumo!$D:$O,F$4,0) -> 10 | G33: =VLOOKUP($C33,Resumo!$D:$O,G$4,0) -> 7 | H33: =VLOOKUP($C33,Resumo!$D:$O,H$4,0) -> 3 | I33: =VLOOKUP($C33,Resumo!$D:$O,I$4,0) -> 1 | J33: =VLOOKUP($C33,Resumo!$D:$O,J$4,0) -> 3 | K33: =VLOOKUP($C33,Resumo!$D:$O,K$4,0) -> 11 | L33: =VLOOKUP($C33,Resumo!$D:$O,L$4,0) -> 14 | M33: =VLOOKUP($C33,Resumo!$D:$O,M$4,0) -> -3 | N33: =VLOOKUP($C33,Resumo!$D:$O,N$4,0) -> 0.48 | O33: 1.57 | P33: 2.00
A34: 29º | B34: PRATA/BRONZE | C34: ='C'!$C$50 -> REBEL-ADDP | F34: =VLOOKUP($C34,Resumo!$D:$O,F$4,0) -> 9 | G34: =VLOOKUP($C34,Resumo!$D:$O,G$4,0) -> 7 | H34: =VLOOKUP($C34,Resumo!$D:$O,H$4,0) -> 3 | I34: =VLOOKUP($C34,Resumo!$D:$O,I$4,0) -> 0 | J34: =VLOOKUP($C34,Resumo!$D:$O,J$4,0) -> 4 | K34: =VLOOKUP($C34,Resumo!$D:$O,K$4,0) -> 12 | L34: =VLOOKUP($C34,Resumo!$D:$O,L$4,0) -> 20 | M34: =VLOOKUP($C34,Resumo!$D:$O,M$4,0) -> -8 | N34: =VLOOKUP($C34,Resumo!$D:$O,N$4,0) -> 0.43 | O34: 1.71 | P34: 2.86
A35: 30º | B35: PRATA/BRONZE | C35: =E!$C$50 -> MATOSO-CRVG | F35: =VLOOKUP($C35,Resumo!$D:$O,F$4,0) -> 9 | G35: =VLOOKUP($C35,Resumo!$D:$O,G$4,0) -> 7 | H35: =VLOOKUP($C35,Resumo!$D:$O,H$4,0) -> 2 | I35: =VLOOKUP($C35,Resumo!$D:$O,I$4,0) -> 3 | J35: =VLOOKUP($C35,Resumo!$D:$O,J$4,0) -> 2 | K35: =VLOOKUP($C35,Resumo!$D:$O,K$4,0) -> 10 | L35: =VLOOKUP($C35,Resumo!$D:$O,L$4,0) -> 12 | M35: =VLOOKUP($C35,Resumo!$D:$O,M$4,0) -> -2 | N35: =VLOOKUP($C35,Resumo!$D:$O,N$4,0) -> 0.43 | O35: 1.43 | P35: 1.71
A36: 31º | B36: PRATA/BRONZE | C36: =A!$C$51 -> LIBÓRIO-FFC | F36: =VLOOKUP($C36,Resumo!$D:$O,F$4,0) -> 7 | G36: =VLOOKUP($C36,Resumo!$D:$O,G$4,0) -> 7 | H36: =VLOOKUP($C36,Resumo!$D:$O,H$4,0) -> 2 | I36: =VLOOKUP($C36,Resumo!$D:$O,I$4,0) -> 1 | J36: =VLOOKUP($C36,Resumo!$D:$O,J$4,0) -> 4 | K36: =VLOOKUP($C36,Resumo!$D:$O,K$4,0) -> 11 | L36: =VLOOKUP($C36,Resumo!$D:$O,L$4,0) -> 18 | M36: =VLOOKUP($C36,Resumo!$D:$O,M$4,0) -> -7 | N36: =VLOOKUP($C36,Resumo!$D:$O,N$4,0) -> 0.33 | O36: 1.57 | P36: 2.57
A37: 32º | B37: PRATA/BRONZE | C37: =F!$C$51 -> KADHU-CRVG | F37: =VLOOKUP($C37,Resumo!$D:$O,F$4,0) -> 7 | G37: =VLOOKUP($C37,Resumo!$D:$O,G$4,0) -> 7 | H37: =VLOOKUP($C37,Resumo!$D:$O,H$4,0) -> 2 | I37: =VLOOKUP($C37,Resumo!$D:$O,I$4,0) -> 1 | J37: =VLOOKUP($C37,Resumo!$D:$O,J$4,0) -> 4 | K37: =VLOOKUP($C37,Resumo!$D:$O,K$4,0) -> 13 | L37: =VLOOKUP($C37,Resumo!$D:$O,L$4,0) -> 21 | M37: =VLOOKUP($C37,Resumo!$D:$O,M$4,0) -> -8 | N37: =VLOOKUP($C37,Resumo!$D:$O,N$4,0) -> 0.33 | O37: 1.86 | P37: 3.00
A38: 33º | B38: PRATA/BRONZE | C38: =B!$C$51 -> MARCELO-BQ | F38: =VLOOKUP($C38,Resumo!$D:$O,F$4,0) -> 7 | G38: =VLOOKUP($C38,Resumo!$D:$O,G$4,0) -> 7 | H38: =VLOOKUP($C38,Resumo!$D:$O,H$4,0) -> 2 | I38: =VLOOKUP($C38,Resumo!$D:$O,I$4,0) -> 1 | J38: =VLOOKUP($C38,Resumo!$D:$O,J$4,0) -> 4 | K38: =VLOOKUP($C38,Resumo!$D:$O,K$4,0) -> 9 | L38: =VLOOKUP($C38,Resumo!$D:$O,L$4,0) -> 17 | M38: =VLOOKUP($C38,Resumo!$D:$O,M$4,0) -> -8 | N38: =VLOOKUP($C38,Resumo!$D:$O,N$4,0) -> 0.33 | O38: 1.29 | P38: 2.43
A39: 34º | B39: PRATA/BRONZE | C39: ='C'!$C$51 -> NILSON-CC | F39: =VLOOKUP($C39,Resumo!$D:$O,F$4,0) -> 6 | G39: =VLOOKUP($C39,Resumo!$D:$O,G$4,0) -> 7 | H39: =VLOOKUP($C39,Resumo!$D:$O,H$4,0) -> 2 | I39: =VLOOKUP($C39,Resumo!$D:$O,I$4,0) -> 0 | J39: =VLOOKUP($C39,Resumo!$D:$O,J$4,0) -> 5 | K39: =VLOOKUP($C39,Resumo!$D:$O,K$4,0) -> 10 | L39: =VLOOKUP($C39,Resumo!$D:$O,L$4,0) -> 13 | M39: =VLOOKUP($C39,Resumo!$D:$O,M$4,0) -> -3 | N39: =VLOOKUP($C39,Resumo!$D:$O,N$4,0) -> 0.29 | O39: 1.43 | P39: 1.86
A40: 35º | B40: PRATA/BRONZE | C40: =B!$C$52 -> B. ASSUMPÇÃO-BQ | F40: =VLOOKUP($C40,Resumo!$D:$O,F$4,0) -> 6 | G40: =VLOOKUP($C40,Resumo!$D:$O,G$4,0) -> 7 | H40: =VLOOKUP($C40,Resumo!$D:$O,H$4,0) -> 2 | I40: =VLOOKUP($C40,Resumo!$D:$O,I$4,0) -> 0 | J40: =VLOOKUP($C40,Resumo!$D:$O,J$4,0) -> 5 | K40: =VLOOKUP($C40,Resumo!$D:$O,K$4,0) -> 7 | L40: =VLOOKUP($C40,Resumo!$D:$O,L$4,0) -> 14 | M40: =VLOOKUP($C40,Resumo!$D:$O,M$4,0) -> -7 | N40: =VLOOKUP($C40,Resumo!$D:$O,N$4,0) -> 0.29 | O40: 1.00 | P40: 2.00
A41: 36º | B41: PRATA/BRONZE | C41: ='C'!$C$52 -> CARLOS-APCEF-DF | F41: =VLOOKUP($C41,Resumo!$D:$O,F$4,0) -> 6 | G41: =VLOOKUP($C41,Resumo!$D:$O,G$4,0) -> 7 | H41: =VLOOKUP($C41,Resumo!$D:$O,H$4,0) -> 2 | I41: =VLOOKUP($C41,Resumo!$D:$O,I$4,0) -> 0 | J41: =VLOOKUP($C41,Resumo!$D:$O,J$4,0) -> 5 | K41: =VLOOKUP($C41,Resumo!$D:$O,K$4,0) -> 14 | L41: =VLOOKUP($C41,Resumo!$D:$O,L$4,0) -> 22 | M41: =VLOOKUP($C41,Resumo!$D:$O,M$4,0) -> -8 | N41: =VLOOKUP($C41,Resumo!$D:$O,N$4,0) -> 0.29 | O41: 2.00 | P41: 3.14
A42: 37º | B42: PRATA/BRONZE | C42: =D!$C$51 -> KLAUS-APCEF | F42: =VLOOKUP($C42,Resumo!$D:$O,F$4,0) -> 6 | G42: =VLOOKUP($C42,Resumo!$D:$O,G$4,0) -> 7 | H42: =VLOOKUP($C42,Resumo!$D:$O,H$4,0) -> 2 | I42: =VLOOKUP($C42,Resumo!$D:$O,I$4,0) -> 0 | J42: =VLOOKUP($C42,Resumo!$D:$O,J$4,0) -> 5 | K42: =VLOOKUP($C42,Resumo!$D:$O,K$4,0) -> 10 | L42: =VLOOKUP($C42,Resumo!$D:$O,L$4,0) -> 20 | M42: =VLOOKUP($C42,Resumo!$D:$O,M$4,0) -> -10 | N42: =VLOOKUP($C42,Resumo!$D:$O,N$4,0) -> 0.29 | O42: 1.43 | P42: 2.86
A43: 38º | B43: PRATA/BRONZE | C43: =E!$C$51 -> ARMANDO-PE | F43: =VLOOKUP($C43,Resumo!$D:$O,F$4,0) -> 6 | G43: =VLOOKUP($C43,Resumo!$D:$O,G$4,0) -> 7 | H43: =VLOOKUP($C43,Resumo!$D:$O,H$4,0) -> 1 | I43: =VLOOKUP($C43,Resumo!$D:$O,I$4,0) -> 3 | J43: =VLOOKUP($C43,Resumo!$D:$O,J$4,0) -> 3 | K43: =VLOOKUP($C43,Resumo!$D:$O,K$4,0) -> 5 | L43: =VLOOKUP($C43,Resumo!$D:$O,L$4,0) -> 8 | M43: =VLOOKUP($C43,Resumo!$D:$O,M$4,0) -> -3 | N43: =VLOOKUP($C43,Resumo!$D:$O,N$4,0) -> 0.29 | O43: 0.71 | P43: 1.14
A44: 39º | B44: PRATA/BRONZE | C44: =E!$C$52 -> ANDRÉ-BQ | F44: =VLOOKUP($C44,Resumo!$D:$O,F$4,0) -> 5 | G44: =VLOOKUP($C44,Resumo!$D:$O,G$4,0) -> 7 | H44: =VLOOKUP($C44,Resumo!$D:$O,H$4,0) -> 1 | I44: =VLOOKUP($C44,Resumo!$D:$O,I$4,0) -> 2 | J44: =VLOOKUP($C44,Resumo!$D:$O,J$4,0) -> 4 | K44: =VLOOKUP($C44,Resumo!$D:$O,K$4,0) -> 5 | L44: =VLOOKUP($C44,Resumo!$D:$O,L$4,0) -> 12 | M44: =VLOOKUP($C44,Resumo!$D:$O,M$4,0) -> -7 | N44: =VLOOKUP($C44,Resumo!$D:$O,N$4,0) -> 0.24 | O44: 0.71 | P44: 1.71
A45: 40º | B45: PRATA/BRONZE | C45: =F!$C$52 -> BELMIRO-RIVER | F45: =VLOOKUP($C45,Resumo!$D:$O,F$4,0) -> 3 | G45: =VLOOKUP($C45,Resumo!$D:$O,G$4,0) -> 7 | H45: =VLOOKUP($C45,Resumo!$D:$O,H$4,0) -> 1 | I45: =VLOOKUP($C45,Resumo!$D:$O,I$4,0) -> 0 | J45: =VLOOKUP($C45,Resumo!$D:$O,J$4,0) -> 6 | K45: =VLOOKUP($C45,Resumo!$D:$O,K$4,0) -> 10 | L45: =VLOOKUP($C45,Resumo!$D:$O,L$4,0) -> 20 | M45: =VLOOKUP($C45,Resumo!$D:$O,M$4,0) -> -10 | N45: =VLOOKUP($C45,Resumo!$D:$O,N$4,0) -> 0.14 | O45: 1.43 | P45: 2.86
A46: 41º | B46: PRATA/BRONZE | C46: =D!$C$52 -> DANIEL-CRVG | F46: =VLOOKUP($C46,Resumo!$D:$O,F$4,0) -> 1 | G46: =VLOOKUP($C46,Resumo!$D:$O,G$4,0) -> 7 | H46: =VLOOKUP($C46,Resumo!$D:$O,H$4,0) -> 0 | I46: =VLOOKUP($C46,Resumo!$D:$O,I$4,0) -> 1 | J46: =VLOOKUP($C46,Resumo!$D:$O,J$4,0) -> 6 | K46: =VLOOKUP($C46,Resumo!$D:$O,K$4,0) -> 0 | L46: =VLOOKUP($C46,Resumo!$D:$O,L$4,0) -> 6 | M46: =VLOOKUP($C46,Resumo!$D:$O,M$4,0) -> -6 | N46: =VLOOKUP($C46,Resumo!$D:$O,N$4,0) -> 0.05 | O46: 0 | P46: 0.86
A47: 42º | B47: PRATA/BRONZE | C47: =A!$C$52 -> HAMILTON-BQ | F47: =VLOOKUP($C47,Resumo!$D:$O,F$4,0) -> 0 | G47: =VLOOKUP($C47,Resumo!$D:$O,G$4,0) -> 6 | H47: =VLOOKUP($C47,Resumo!$D:$O,H$4,0) -> 0 | I47: =VLOOKUP($C47,Resumo!$D:$O,I$4,0) -> 0 | J47: =VLOOKUP($C47,Resumo!$D:$O,J$4,0) -> 6 | K47: =VLOOKUP($C47,Resumo!$D:$O,K$4,0) -> 0 | L47: =VLOOKUP($C47,Resumo!$D:$O,L$4,0) -> 6 | M47: =VLOOKUP($C47,Resumo!$D:$O,M$4,0) -> -6 | N47: =VLOOKUP($C47,Resumo!$D:$O,N$4,0) -> 0.00 | O47: 0 | P47: 1.00
A48: 43º | B48: PRATA/BRONZE | C48: =A!$C$53 -> VAGO-W.O | F48: =VLOOKUP($C48,Resumo!$D:$O,F$4,0) -> 0 | G48: =VLOOKUP($C48,Resumo!$D:$O,G$4,0) -> 6 | H48: =VLOOKUP($C48,Resumo!$D:$O,H$4,0) -> 0 | I48: =VLOOKUP($C48,Resumo!$D:$O,I$4,0) -> 0 | J48: =VLOOKUP($C48,Resumo!$D:$O,J$4,0) -> 6 | K48: =VLOOKUP($C48,Resumo!$D:$O,K$4,0) -> 0 | L48: =VLOOKUP($C48,Resumo!$D:$O,L$4,0) -> 6 | M48: =VLOOKUP($C48,Resumo!$D:$O,M$4,0) -> -6 | N48: =VLOOKUP($C48,Resumo!$D:$O,N$4,0) -> 0.00 | O48: 0 | P48: 1.00
A49: 44º | B49: PRATA/BRONZE | C49: =B!$C$53 -> VAGO-W.O | F49: =VLOOKUP($C49,Resumo!$D:$O,F$4,0) -> 0 | G49: =VLOOKUP($C49,Resumo!$D:$O,G$4,0) -> 6 | H49: =VLOOKUP($C49,Resumo!$D:$O,H$4,0) -> 0 | I49: =VLOOKUP($C49,Resumo!$D:$O,I$4,0) -> 0 | J49: =VLOOKUP($C49,Resumo!$D:$O,J$4,0) -> 6 | K49: =VLOOKUP($C49,Resumo!$D:$O,K$4,0) -> 0 | L49: =VLOOKUP($C49,Resumo!$D:$O,L$4,0) -> 6 | M49: =VLOOKUP($C49,Resumo!$D:$O,M$4,0) -> -6 | N49: =VLOOKUP($C49,Resumo!$D:$O,N$4,0) -> 0.00 | O49: 0 | P49: 1.00
A50: 45º | B50: PRATA/BRONZE | C50: ='C'!$C$53 -> VAGO-W.O | F50: =VLOOKUP($C50,Resumo!$D:$O,F$4,0) -> 0 | G50: =VLOOKUP($C50,Resumo!$D:$O,G$4,0) -> 6 | H50: =VLOOKUP($C50,Resumo!$D:$O,H$4,0) -> 0 | I50: =VLOOKUP($C50,Resumo!$D:$O,I$4,0) -> 0 | J50: =VLOOKUP($C50,Resumo!$D:$O,J$4,0) -> 6 | K50: =VLOOKUP($C50,Resumo!$D:$O,K$4,0) -> 0 | L50: =VLOOKUP($C50,Resumo!$D:$O,L$4,0) -> 6 | M50: =VLOOKUP($C50,Resumo!$D:$O,M$4,0) -> -6 | N50: =VLOOKUP($C50,Resumo!$D:$O,N$4,0) -> 0.00 | O50: 0 | P50: 1.00
A51: 46º | B51: PRATA/BRONZE | C51: =D!$C$53 -> VAGO-W.O | F51: =VLOOKUP($C51,Resumo!$D:$O,F$4,0) -> 0 | G51: =VLOOKUP($C51,Resumo!$D:$O,G$4,0) -> 6 | H51: =VLOOKUP($C51,Resumo!$D:$O,H$4,0) -> 0 | I51: =VLOOKUP($C51,Resumo!$D:$O,I$4,0) -> 0 | J51: =VLOOKUP($C51,Resumo!$D:$O,J$4,0) -> 6 | K51: =VLOOKUP($C51,Resumo!$D:$O,K$4,0) -> 0 | L51: =VLOOKUP($C51,Resumo!$D:$O,L$4,0) -> 6 | M51: =VLOOKUP($C51,Resumo!$D:$O,M$4,0) -> -6 | N51: =VLOOKUP($C51,Resumo!$D:$O,N$4,0) -> 0.00 | O51: 0 | P51: 1.00
A52: 47º | B52: PRATA/BRONZE | C52: =E!$C$53 -> VAGO-W.O | F52: =VLOOKUP($C52,Resumo!$D:$O,F$4,0) -> 0 | G52: =VLOOKUP($C52,Resumo!$D:$O,G$4,0) -> 6 | H52: =VLOOKUP($C52,Resumo!$D:$O,H$4,0) -> 0 | I52: =VLOOKUP($C52,Resumo!$D:$O,I$4,0) -> 0 | J52: =VLOOKUP($C52,Resumo!$D:$O,J$4,0) -> 6 | K52: =VLOOKUP($C52,Resumo!$D:$O,K$4,0) -> 0 | L52: =VLOOKUP($C52,Resumo!$D:$O,L$4,0) -> 6 | M52: =VLOOKUP($C52,Resumo!$D:$O,M$4,0) -> -6 | N52: =VLOOKUP($C52,Resumo!$D:$O,N$4,0) -> 0.00 | O52: 0 | P52: 1.00
A53: 48º | B53: PRATA/BRONZE | C53: =F!$C$53 -> VAGO-W.O | F53: =VLOOKUP($C53,Resumo!$D:$O,F$4,0) -> 0 | G53: =VLOOKUP($C53,Resumo!$D:$O,G$4,0) -> 6 | H53: =VLOOKUP($C53,Resumo!$D:$O,H$4,0) -> 0 | I53: =VLOOKUP($C53,Resumo!$D:$O,I$4,0) -> 0 | J53: =VLOOKUP($C53,Resumo!$D:$O,J$4,0) -> 6 | K53: =VLOOKUP($C53,Resumo!$D:$O,K$4,0) -> 0 | L53: =VLOOKUP($C53,Resumo!$D:$O,L$4,0) -> 6 | M53: =VLOOKUP($C53,Resumo!$D:$O,M$4,0) -> -6 | N53: =VLOOKUP($C53,Resumo!$D:$O,N$4,0) -> 0.00 | O53: 0 | P53: 1.00

Sheet Grupos Prox Fase
B3: 1º | C3: =VLOOKUP(B3,Classificação!$A$6:$C$53,3,0) -> BRAYNER-CRVG | D3: 2º | E3: =VLOOKUP(D3,Classificação!$A$6:$C$53,3,0) -> RONALD-CRF | F3: 3º | G3: =VLOOKUP(F3,Classificação!$A$6:$C$53,3,0) -> FERNANDO-BOT-DF | H3: 4º | I3: =VLOOKUP(H3,Classificação!$A$6:$C$53,3,0) -> RICARDO-CRF
B4: 8º | C4: =VLOOKUP(B4,Classificação!$A$6:$C$53,3,0) -> AUGUSTO-CRF | D4: 7º | E4: =VLOOKUP(D4,Classificação!$A$6:$C$53,3,0) -> ALMO-CC | F4: 6º | G4: =VLOOKUP(F4,Classificação!$A$6:$C$53,3,0) -> AIRES-ASBAC | H4: 5º | I4: =VLOOKUP(H4,Classificação!$A$6:$C$53,3,0) -> ROMAR-CRVG
B5: 9º | C5: =VLOOKUP(B5,Classificação!$A$6:$C$53,3,0) -> GIUSEPE-BOT-DF | D5: 10º | E5: =VLOOKUP(D5,Classificação!$A$6:$C$53,3,0) -> WELLINGTON-ADDP | F5: 11º | G5: =VLOOKUP(F5,Classificação!$A$6:$C$53,3,0) -> LUCIANO-CRF | H5: 12º | I5: =VLOOKUP(H5,Classificação!$A$6:$C$53,3,0) -> FELIPE-CRF
B6: 16º | C6: =VLOOKUP(B6,Classificação!$A$6:$C$53,3,0) -> EDWARD-BQ | D6: 15º | E6: =VLOOKUP(D6,Classificação!$A$6:$C$53,3,0) -> L.HENRIQUE-TUPI | F6: 14º | G6: =VLOOKUP(F6,Classificação!$A$6:$C$53,3,0) -> LOPES-RIVER | H6: 13º | I6: =VLOOKUP(H6,Classificação!$A$6:$C$53,3,0) -> B. RAFAEL-SANTOS
B7: 17º | C7: =VLOOKUP(B7,Classificação!$A$6:$C$53,3,0) -> GATTO-CRVG | D7: 18º | E7: =VLOOKUP(D7,Classificação!$A$6:$C$53,3,0) -> P.CARUSO-AABB-DF | F7: 19º | G7: =VLOOKUP(F7,Classificação!$A$6:$C$53,3,0) -> MARCUS-BQ | H7: 20º | I7: =VLOOKUP(H7,Classificação!$A$6:$C$53,3,0) -> PAULINHO-BOT-DF
B8: 24º | C8: =VLOOKUP(B8,Classificação!$A$6:$C$53,3,0) -> GILBERTO-ASBAC | D8: 23º | E8: =VLOOKUP(D8,Classificação!$A$6:$C$53,3,0) -> MENDEZ-CRVG | F8: 22º | G8: =VLOOKUP(F8,Classificação!$A$6:$C$53,3,0) -> VERAS-CRF | H8: 21º | I8: =VLOOKUP(H8,Classificação!$A$6:$C$53,3,0) -> LYAN-FFC
B11: 25º | C11: =VLOOKUP(B11,Classificação!$A$6:$C$53,3,0) -> TAVARES-CRVG | D11: 26º | E11: =VLOOKUP(D11,Classificação!$A$6:$C$53,3,0) -> B.MACHADO-BQ | F11: 27º | G11: =VLOOKUP(F11,Classificação!$A$6:$C$53,3,0) -> ROGÉRIO-APCEF | H11: 28º | I11: =VLOOKUP(H11,Classificação!$A$6:$C$53,3,0) -> ZÉ LUIZ-CRF
B12: 32º | C12: =VLOOKUP(B12,Classificação!$A$6:$C$53,3,0) -> KADHU-CRVG | D12: 31º | E12: =VLOOKUP(D12,Classificação!$A$6:$C$53,3,0) -> LIBÓRIO-FFC | F12: 30º | G12: =VLOOKUP(F12,Classificação!$A$6:$C$53,3,0) -> MATOSO-CRVG | H12: 29º | I12: =VLOOKUP(H12,Classificação!$A$6:$C$53,3,0) -> REBEL-ADDP
B13: 33º | C13: =VLOOKUP(B13,Classificação!$A$6:$C$53,3,0) -> MARCELO-BQ | D13: 34º | E13: =VLOOKUP(D13,Classificação!$A$6:$C$53,3,0) -> NILSON-CC | F13: 35º | G13: =VLOOKUP(F13,Classificação!$A$6:$C$53,3,0) -> B. ASSUMPÇÃO-BQ | H13: 36º | I13: =VLOOKUP(H13,Classificação!$A$6:$C$53,3,0) -> CARLOS-APCEF-DF
B14: 40º | C14: =VLOOKUP(B14,Classificação!$A$6:$C$53,3,0) -> BELMIRO-RIVER | D14: 39º | E14: =VLOOKUP(D14,Classificação!$A$6:$C$53,3,0) -> ANDRÉ-BQ | F14: 38º | G14: =VLOOKUP(F14,Classificação!$A$6:$C$53,3,0) -> ARMANDO-PE | H14: 37º | I14: =VLOOKUP(H14,Classificação!$A$6:$C$53,3,0) -> KLAUS-APCEF
B15: 41º | C15: VAGO-W.O | D15: 42º | E15: VAGO-W.O | F15: 43º | G15: =VLOOKUP(F15,Classificação!$A$6:$C$53,3,0) -> VAGO-W.O | H15: 44º | I15: =VLOOKUP(H15,Classificação!$A$6:$C$53,3,0) -> VAGO-W.O
B16: 48º | C16: =VLOOKUP(B16,Classificação!$A$6:$C$53,3,0) -> VAGO-W.O | D16: 47º | E16: =VLOOKUP(D16,Classificação!$A$6:$C$53,3,0) -> VAGO-W.O | F16: 46º | G16: =VLOOKUP(F16,Classificação!$A$6:$C$53,3,0) -> VAGO-W.O | H16: 45º | I16: =VLOOKUP(H16,Classificação!$A$6:$C$53,3,0) -> VAGO-W.O
